Workbook

Sheet Cover (hidden)

Sheet Start
B3: Welcome to the FED FAST
B4: The Freestanding Emergency Department Financial Assessment Strategic Tool

Sheet Header (hidden)

Sheet 1. Instructions
C31: 1. Instructions | H31: 6. Capital Costs
C32: 2. Hospital Information | H32: 7. Operating Costs
C33: 3. Key Assumptions | H33: 8. Expected Revenue
C34: 4. Clinical Staffing Coverage | H34: 9. Pro Forma
C35: 5. Staffing Costs | H35: 10. Feasibility Results
C50: FED FAST References | F50: FED FAST Definitions | I50: List of Inputs for the FED FAST
B60: Yellow shaded cells require user input for the line item
B62: Green shaded cells indicate assumptions for the feasibility analysis
B64: Grey shaded cells are intermediate calculations
B66: Orange shaded cells are calculations that feed into the feasibility analysis
B68: Blue shaded cells reflect final output
B70: Dark Blue shaded boxes with white text indicate links to important information
B72: The "Info" symbol indicates a helpful tip for using the tool.
B74: The "?" symbol indicates important information about data presented in the tool.
B76: Click the "Home" button at the top of the page to return to the Instructions page.
B78: Click the "Next" buttons to move to the next worksheet.
B80: Click the "Back" buttons to go back to the previous worksheet.

Sheet 2. Hospital Information
B6: Please enter information about your organization in the space provided.
B10: Hospital Name | C10: General Hospital
B12: Hospital State | C12: North Carolina | D12: =HYPERLINK("#"&ADDRESS(ROW(),COLUMN()-1),CHAR(128)) -> €
B14: Affiliation with Hospital System? | C14: Yes | D14: =HYPERLINK("#"&ADDRESS(ROW(),COLUMN()-1),CHAR(128)) -> €
B23: Organizational Cost of Capital | C23: 0.04 | D23: =HYPERLINK("#"&ADDRESS(ROW(),COLUMN()-1),CHAR(128)) -> €
B25: Organizational Tax Rate | C25: 0
B27: Number of ED Patient Beds | C27: 12
B29: Average Monthly ED Visits | C29: =(10607)/12 -> 883.9166667
B34: Average Monthly Outpatient Visits | C34: =EDMonthlyVolume*1.25 -> 1104.895833
B36: Number of Hospitals/EDs within 35 Mile Radius | C36: 1
B38: Number of Outpatient Lab/Imaging Facilities within 35 Mile Radius | C38: 3
B40: Estimated ED Square Footage | C40: =NumberBeds*1666.66 -> 19999.92
BD167: =COUNTIF(Expansion,C12)>0 -> FALSE
BF170: Medicaid Expansion | BJ170: No Expansion
AZ171: 1 | BA171: Alabama
AZ172: 2 | BA172: Alaska | BC172: 0.03 | BE172: 1 | BF172: Arizona | BI172: 1 | BJ172: Alabama
AZ173: 3 | BA173: Arizona | BC173: 0.04 | BE173: 2 | BF173: Arkansas | BI173: 2 | BJ173: Alaska
AZ174: 4 | BA174: Arkansas | BC174: 0.05 | BE174: 3 | BF174: California | BI174: 3 | BJ174: Florida
AZ175: 5 | BA175: California | BC175: 0.06 | BE175: 4 | BF175: Colorado | BI175: 4 | BJ175: Georgia
AZ176: 6 | BA176: Colorado | BC176: 0.08 | BE176: 5 | BF176: Connecticut | BI176: 5 | BJ176: Idaho
AZ177: 7 | BA177: Connecticut | BC177: 0.1 | BE177: 6 | BF177: Delaware | BI177: 6 | BJ177: Kansas
AZ178: 8 | BA178: Delaware | BC178: 0.12 | BE178: 7 | BF178: District of Columbia | BI178: 7 | BJ178: Louisiana
AZ179: 9 | BA179: Florida | BC179: 0.15 | BE179: 8 | BF179: Hawaii | BI179: 8 | BJ179: Maine
AZ180: 10 | BA180: Georgia | BC180: 0.19 | BE180: 9 | BF180: Illinois | BI180: 9 | BJ180: Mississippi
AZ181: 11 | BA181: Hawaii | BC181: 0.22 | BE181: 10 | BF181: Indiana | BI181: 10 | BJ181: Missouri
AZ182: 12 | BA182: Idaho | BE182: 11 | BF182: Iowa | BI182: 11 | BJ182: Montana
AZ183: 13 | BA183: Illinois | BE183: 12 | BF183: Kentucky | BI183: 12 | BJ183: Nebraska
AZ184: 14 | BA184: Indiana | BE184: 13 | BF184: Maryland | BI184: 13 | BJ184: North Carolina
AZ185: 15 | BA185: Iowa | BE185: 14 | BF185: Massachusetts | BI185: 14 | BJ185: Oklahoma
AZ186: 16 | BA186: Kansas | BE186: 15 | BF186: Michigan | BI186: 15 | BJ186: South Carolina
AZ187: 17 | BA187: Kentucky | BE187: 16 | BF187: Minnesota | BI187: 16 | BJ187: South Dakota
AZ188: 18 | BA188: Louisiana | BE188: 17 | BF188: Nevada | BI188: 17 | BJ188: Tennessee
AZ189: 19 | BA189: Maine | BE189: 18 | BF189: New Hampshire | BI189: 18 | BJ189: Texas
AZ190: 20 | BA190: Maryland | BE190: 19 | BF190: New Jersey | BI190: 19 | BJ190: Utah
AZ191: 21 | BA191: Massachusetts | BE191: 20 | BF191: New Mexico | BI191: 20 | BJ191: Virginia
AZ192: 22 | BA192: Michigan | BE192: 21 | BF192: New York | BI192: 21 | BJ192: Wisconsin
AZ193: 23 | BA193: Minnesota | BE193: 22 | BF193: North Dakota | BI193: 22 | BJ193: Wyoming
AZ194: 24 | BA194: Mississippi | BE194: 23 | BF194: Ohio | BI194: 23
AZ195: 25 | BA195: Missouri | BE195: 24 | BF195: Oregon | BI195: 24
AZ196: 26 | BA196: Montana | BE196: 25 | BF196: Pennsylvania
AZ197: 27 | BA197: Nebraska | BE197: 26 | BF197: Rhode Island
AZ198: 28 | BA198: Nevada | BE198: 27 | BF198: Vermont
AZ199: 29 | BA199: New Hampshire | BE199: 28 | BF199: Washington
AZ200: 30 | BA200: New Jersey | BE200: 29 | BF200: West Virginia
AZ201: 31 | BA201: New Mexico
AZ202: 32 | BA202: New York
AZ203: 33 | BA203: North Carolina
AZ204: 34 | BA204: North Dakota
AZ205: 35 | BA205: Ohio
AZ206: 36 | BA206: Oklahoma
AZ207: 37 | BA207: Oregon
AZ208: 38 | BA208: Pennsylvania
AZ209: 39 | BA209: Rhode Island
AZ210: 40 | BA210: South Carolina
AZ211: 41 | BA211: South Dakota
AZ212: 42 | BA212: Tennessee
AZ213: 43 | BA213: Texas
AZ214: 44 | BA214: Utah
AZ215: 45 | BA215: Vermont
AZ216: 46 | BA216: Virginia
AZ217: 47 | BA217: Washington
AZ218: 48 | BA218: West Virginia
AZ219: 49 | BA219: Wisconsin
AZ220: 50 | BA220: Wyoming
BA221: District of Columbia

Sheet 3. Key Assumptions
B6: The calculations provided in this tool are based on the following assumptions.
B7: *Note: The values below can be used as a starting point, but may be modified if you have organization-specific values.
B10: General Assumption(s)
B13: Inflation rate on costs: | D13: 0.03
B21: Volume Assumption(s)
B23: Annual projected demand is based on average monthly visits.
B25: Volume Growth Rate | D25: 0.00885 | E25: 0.03
B35: Staffing Assumption(s)
B38: Automated staff ratio calculations are dependent on the number of ED beds.
B40: Calculated FTEs accounts for budgeted time off.
B42: The staffing model assumes physicians will be employed by the FED.
B45: Revenue Assumption(s)
B48: Average charge for ED visit | D48: 1845
B53: Average charge for Outpatient visit | D53: 1308
B62: Medicare reimbursement will change annually by: | D62: 0.022
B72: Depreciation Assumption(s)
B75: Avg. Useful life of clinical equipment and office furniture: | D75: 7
B77: Avg. Useful life of computers and technology equipment: | D77: 3
B90: Other Assumptions
B93: The desired staffing ratios are based on the number of beds in the facility.
B95: Charges will be the same across all services, and will

Sheet 4. Clinical Staffing Coverage
E17: How many beds will each RN be responsible for? | F17: 8
E18: How many beds will each CNA be responsible for? | F18: 12
E20: Number of ED Beds in Facility | F20: =NumberBeds -> 12
E21: Hours Per Day | F21: 24
E22: Days in Week | F22: 7
E23: Hours Worked / Week (1 FTE) | F23: 36
E25: Providers Needed | F25: Daily RN Hours | G25: Weekly RN Hours | H25: Yearly RN Hours | I25: Total RN FTEs
E26: =IF((F17<F20),(F20/F17),1) -> 1.5 | F26: =E26*F21 -> 36 | G26: =F26*F22 -> 252 | H26: =G26*52 -> 13104 | I26: =ROUNDUP(H26/(F23*52),1) -> 7
E28: Providers Needed | F28: Daily CNA Hours | G28: Weekly CNA Hours | H28: Yearly CNA Hours | I28: Total CNA FTEs
E29: =IF(F18>0,(F20/F18),0) -> 1 | F29: =E29*F21 -> 24 | G29: =F29*F22 -> 168 | H29: =G29*52 -> 8736 | I29: =ROUNDUP(H29/(F23*52),1) -> 4.7
E36: How many beds will each MD be responsible for? | F36: 8
E37: How many beds will each PA be responsible for? | F37: 0
E38: How many beds will each NP be responsible for? | F38: 12
E40: Number of Beds | F40: =NumberBeds -> 12
E41: Hours Per Day | F41: 24
E42: Days in Week | F42: 7
E43: Hours Worked/Week (1 FTE) | F43: 36
E45: Providers Needed | F45: Daily MD Hours | G45: Weekly MD Hours | H45: Yearly MD Hours | I45: Total MD FTEs
E46: =(IF((F36<F40),(F40/F36),1)) -> 1.5 | F46: =E46*F41 -> 36 | G46: =F46*F42 -> 252 | H46: =G46*52 -> 13104 | I46: =ROUNDUP(H46/(F43*52),1) -> 7
E48: Providers Needed | F48: Daily PA Hours | G48: Weekly PA Hours | H48: Yearly PA Hours | I48: Total PA FTEs
E49: =IF(F37>0,ROUNDUP(F40/F37,0),0) -> 0 | F49: =E49*F41 -> 0 | G49: =F49*F42 -> 0 | H49: =G49*52 -> 0 | I49: =ROUNDUP(H49/(F43*52),1) -> 0
E51: Providers Needed | F51: Daily NP Hours | G51: Weekly NP Hours | H51: Yearly NP Hours | I51: Total NP FTEs
E52: =(IF(F38>0,ROUNDUP(F40/F38,0),0))/2 -> 0.5 | F52: =E52*F41 -> 12 | G52: =F52*F42 -> 84 | H52: =G52*52 -> 4368 | I52: =ROUNDUP(H52/(F43*52),1) -> 2.4

Sheet 5. Staffing Costs
B6: This worksheet calculates the staffing costs for your FED.
B8: Please enter your annual FTEs and staffing costs in the spaces provided below.
B10: Administration | C10: FTEs | D10: Salary | E10: Bonus | F10: Benefits | G10: Total Compensation
B11: Emergency Services Director | C11: 1 | D11: 109918 | F11: =LeadershipCosts[[#This Row],[Salary]]*0.224 -> 24621.632 | G11: =LeadershipCosts[[#This Row],[FTEs]]*SUM(LeadershipCosts[[#This Row],[Salary]:[Benefits]]) -> 134539.632
B12: Charge Nurse - ED | C12: 1 | D12: 82319 | F12: =LeadershipCosts[[#This Row],[Salary]]*0.224 -> 18439.456 | G12: =LeadershipCosts[[#This Row],[FTEs]]*SUM(LeadershipCosts[[#This Row],[Salary]:[Benefits]]) -> 100758.456
B13: Other | F13: =LeadershipCosts[[#This Row],[Salary]]*0.224 -> 0 | G13: =LeadershipCosts[[#This Row],[FTEs]]*SUM(LeadershipCosts[[#This Row],[Salary]:[Benefits]]) -> 0
B14: Other | F14: =LeadershipCosts[[#This Row],[Salary]]*0.224 -> 0 | G14: =LeadershipCosts[[#This Row],[FTEs]]*SUM(LeadershipCosts[[#This Row],[Salary]:[Benefits]]) -> 0
B15: Other | F15: =LeadershipCosts[[#This Row],[Salary]]*0.224 -> 0 | G15: =LeadershipCosts[[#This Row],[FTEs]]*SUM(LeadershipCosts[[#This Row],[Salary]:[Benefits]]) -> 0
B16: Total | C16: =SUBTOTAL(109,LeadershipCosts[FTEs]) -> 2 | D16: =SUBTOTAL(109,LeadershipCosts[Salary]) -> 192237 | E16: =SUBTOTAL(109,LeadershipCosts[Bonus]) -> 0 | F16: =SUBTOTAL(109,LeadershipCosts[Benefits]) -> 43061.088 | G16: =SUBTOTAL(109,LeadershipCosts[Total Compensation]) -> 235298.088
B17: Clinical Support | C17: FTEs | D17: Salary | E17: Bonus | F17: Benefits | G17: Total Compensation
B18: Physician - ED / FP | C18: ='4. Clinical Staffing Coverage'!I46 -> 7 | D18: 280000 | F18: =ProviderCosts[[#This Row],[Salary]]*0.224 -> 62720 | G18: =ProviderCosts[[#This Row],[FTEs]]*SUM(ProviderCosts[[#This Row],[Salary]:[Benefits]]) -> 2399040
B19: Physician Assistant | C19: ='4. Clinical Staffing Coverage'!I49 -> 0 | D19: 83425 | F19: =ProviderCosts[[#This Row],[Salary]]*0.224 -> 18687.2 | G19: =ProviderCosts[[#This Row],[FTEs]]*SUM(ProviderCosts[[#This Row],[Salary]:[Benefits]]) -> 0
B20: Nurse Practitioner | C20: ='4. Clinical Staffing Coverage'!I52 -> 2.4 | D20: 89005 | F20: =ProviderCosts[[#This Row],[Salary]]*0.224 -> 19937.12 | G20: =ProviderCosts[[#This Row],[FTEs]]*SUM(ProviderCosts[[#This Row],[Salary]:[Benefits]]) -> 261461.088
B21: Registered Nurse | C21: ='4. Clinical Staffing Coverage'!I26 -> 7 | D21: 54900 | F21: =ProviderCosts[[#This Row],[Salary]]*0.224 -> 12297.6 | G21: =ProviderCosts[[#This Row],[FTEs]]*SUM(ProviderCosts[[#This Row],[Salary]:[Benefits]]) -> 470383.2
B22: C N A / EMT | C22: ='4. Clinical Staffing Coverage'!I29 -> 4.7 | D22: 26906 | F22: =ProviderCosts[[#This Row],[Salary]]*0.224 -> 6026.944 | G22: =ProviderCosts[[#This Row],[FTEs]]*SUM(ProviderCosts[[#This Row],[Salary]:[Benefits]]) -> 154784.8368
B23: Unit Coordinator | C23: 2.4 | D23: 34000 | F23: =ProviderCosts[[#This Row],[Salary]]*0.224 -> 7616 | G23: =ProviderCosts[[#This Row],[FTEs]]*SUM(ProviderCosts[[#This Row],[Salary]:[Benefits]]) -> 99878.4
B24: Medical Scribe | C24: 0 | D24: 36140 | F24: =ProviderCosts[[#This Row],[Salary]]*0.224 -> 8095.36 | G24: =ProviderCosts[[#This Row],[FTEs]]*SUM(ProviderCosts[[#This Row],[Salary]:[Benefits]]) -> 0
B25: Ultrasound Tech | C25: 2.4 | D25: 51000 | F25: =ProviderCosts[[#This Row],[Salary]]*0.224 -> 11424 | G25: =ProviderCosts[[#This Row],[FTEs]]*SUM(ProviderCosts[[#This Row],[Salary]:[Benefits]]) -> 149817.6
B26: CT / X-Ray Tech | C26: 4.7 | D26: 56154 | F26: =ProviderCosts[[#This Row],[Salary]]*0.224 -> 12578.496 | G26: =ProviderCosts[[#This Row],[FTEs]]*SUM(ProviderCosts[[#This Row],[Salary]:[Benefits]]) -> 323042.7312
B27: X-Ray Tech | C27: 0 | D27: 45525 | F27: =ProviderCosts[[#This Row],[Salary]]*0.224 -> 10197.6 | G27: =ProviderCosts[[#This Row],[FTEs]]*SUM(ProviderCosts[[#This Row],[Salary]:[Benefits]]) -> 0
B28: Med Lab Tech | C28: 4.7 | D28: 50100 | F28: =ProviderCosts[[#This Row],[Salary]]*0.224 -> 11222.4 | G28: =ProviderCosts[[#This Row],[FTEs]]*SUM(ProviderCosts[[#This Row],[Salary]:[Benefits]]) -> 288215.28
B29: Respiratory Therapist | C29: 2.4 | D29: 59000 | F29: =ProviderCosts[[#This Row],[Salary]]*0.224 -> 13216 | G29: =ProviderCosts[[#This Row],[FTEs]]*SUM(ProviderCosts[[#This Row],[Salary]:[Benefits]]) -> 173318.4
B30: Traveling Nurse | C30: 0 | F30: =ProviderCosts[[#This Row],[Salary]]*0.224 -> 0 | G30: =ProviderCosts[[#This Row],[FTEs]]*SUM(ProviderCosts[[#This Row],[Salary]:[Benefits]]) -> 0
B31: Medical Social Worker | C31: 0.5 | D31: 52079 | F31: =ProviderCosts[[#This Row],[Salary]]*0.224 -> 11665.696 | G31: =ProviderCosts[[#This Row],[FTEs]]*SUM(ProviderCosts[[#This Row],[Salary]:[Benefits]]) -> 31872.348
B32: Pharmacist | C32: 0.8 | D32: 120000 | F32: =ProviderCosts[[#This Row],[Salary]]*0.224 -> 26880 | G32: =ProviderCosts[[#This Row],[FTEs]]*SUM(ProviderCosts[[#This Row],[Salary]:[Benefits]]) -> 117504
B33: Pharmacy Technician | C33: 0 | D33: 35000 | F33: =ProviderCosts[[#This Row],[Salary]]*0.224 -> 7840 | G33: =ProviderCosts[[#This Row],[FTEs]]*SUM(ProviderCosts[[#This Row],[Salary]:[Benefits]]) -> 0
B34: Other | F34: =ProviderCosts[[#This Row],[Salary]]*0.224 -> 0 | G34: =ProviderCosts[[#This Row],[FTEs]]*SUM(ProviderCosts[[#This Row],[Salary]:[Benefits]]) -> 0
B35: Other | F35: =ProviderCosts[[#This Row],[Salary]]*0.224 -> 0 | G35: =ProviderCosts[[#This Row],[FTEs]]*SUM(ProviderCosts[[#This Row],[Salary]:[Benefits]]) -> 0
B36: Other | F36: =ProviderCosts[[#This Row],[Salary]]*0.224 -> 0 | G36: =ProviderCosts[[#This Row],[FTEs]]*SUM(ProviderCosts[[#This Row],[Salary]:[Benefits]]) -> 0
B37: Total | C37: =SUBTOTAL(109,ProviderCosts[FTEs]) -> 39 | D37: =SUBTOTAL(109,ProviderCosts[Salary]) -> 1073234 | E37: =SUBTOTAL(109,ProviderCosts[Bonus]) -> 0 | F37: =SUBTOTAL(109,ProviderCosts[Benefits]) -> 240404.416 | G37: =SUBTOTAL(109,ProviderCosts[Total Compensation]) -> 4469317.884
B38: Nonclinical Support | C38: FTEs | D38: Salary | E38: Bonus | F38: Benefits | G38: Total Compensation
B39: Patient Registrar | C39: 2.4 | D39: 28050 | F39: =AdminCosts[[#This Row],[Salary]]*0.224 -> 6283.2 | G39: =AdminCosts[[#This Row],[FTEs]]*SUM(AdminCosts[[#This Row],[Salary]:[Benefits]]) -> 82399.68
B40: Clinical Admin. Coordinator | C40: 1 | D40: 35626 | F40: =AdminCosts[[#This Row],[Salary]]*0.224 -> 7980.224 | G40: =AdminCosts[[#This Row],[FTEs]]*SUM(AdminCosts[[#This Row],[Salary]:[Benefits]]) -> 43606.224
B41: Patient Accounts Rep | C41: 2.4 | D41: 38220 | F41: =AdminCosts[[#This Row],[Salary]]*0.224 -> 8561.28 | G41: =AdminCosts[[#This Row],[FTEs]]*SUM(AdminCosts[[#This Row],[Salary]:[Benefits]]) -> 112275.072
B42: HR/Credentialing/Recruiting | C42: 3 | D42: 52000 | F42: =AdminCosts[[#This Row],[Salary]]*0.224 -> 11648 | G42: =AdminCosts[[#This Row],[FTEs]]*SUM(AdminCosts[[#This Row],[Salary]:[Benefits]]) -> 190944
B43: Business/Payroll | C43: 1 | D43: 60649 | F43: =AdminCosts[[#This Row],[Salary]]*0.224 -> 13585.376 | G43: =AdminCosts[[#This Row],[FTEs]]*SUM(AdminCosts[[#This Row],[Salary]:[Benefits]]) -> 74234.376
B44: Billing/Med Records Asst | C44: 4.7 | D44: 34398 | F44: =AdminCosts[[#This Row],[Salary]]*0.224 -> 7705.152 | G44: =AdminCosts[[#This Row],[FTEs]]*SUM(AdminCosts[[#This Row],[Salary]:[Benefits]]) -> 197884.8144
B45: Security Officer | C45: 4.7 | D45: 28500 | F45: =AdminCosts[[#This Row],[Salary]]*0.224 -> 6384 | G45: =AdminCosts[[#This Row],[FTEs]]*SUM(AdminCosts[[#This Row],[Salary]:[Benefits]]) -> 163954.8
B46: Property Superintendent | C46: 1 | D46: 52855 | F46: =AdminCosts[[#This Row],[Salary]]*0.224 -> 11839.52 | G46: =AdminCosts[[#This Row],[FTEs]]*SUM(AdminCosts[[#This Row],[Salary]:[Benefits]]) -> 64694.52
B47: Facilities Staff | C47: 2.4 | D47: 24000 | F47: =AdminCosts[[#This Row],[Salary]]*0.224 -> 5376 | G47: =AdminCosts[[#This Row],[FTEs]]*SUM(AdminCosts[[#This Row],[Salary]:[Benefits]]) -> 70502.4
B48: Transport/Delivery/Receiving | C48: 0 | D48: 29000 | F48: =AdminCosts[[#This Row],[Salary]]*0.224 -> 6496 | G48: =AdminCosts[[#This Row],[FTEs]]*SUM(AdminCosts[[#This Row],[Salary]:[Benefits]]) -> 0
B49: Other | F49: =AdminCosts[[#This Row],[Salary]]*0.224 -> 0 | G49: =AdminCosts[[#This Row],[FTEs]]*SUM(AdminCosts[[#This Row],[Salary]:[Benefits]]) -> 0
B50: Total | C50: =SUBTOTAL(109,AdminCosts[FTEs]) -> 22.6 | D50: =SUBTOTAL(109,AdminCosts[Salary]) -> 383298 | E50: =SUBTOTAL(109,AdminCosts[Bonus]) -> 0 | F50: =SUBTOTAL(109,AdminCosts[Benefits]) -> 85858.752 | G50: =SUBTOTAL(109,AdminCosts[Total Compensation]) -> 1000495.886
B53: Total Staffing Costs | G53: =SUM(LeadershipCosts[[#Totals],[Total Compensation]],ProviderCosts[[#Totals],[Total Compensation]],AdminCosts[[#Totals],[Total Compensation]]) -> 5705111.858

Sheet 6. Capital Costs
B6: This worksheet calculates the total capital costs required for your FED.
B9: Please enter any initial investment costs in the table provided below.
B12: Initial Investment Costs | C12: Cost
B13: Construction/Renovation
B14: Other Costs | C14: =20*(EDMonthlyVolume*12) -> 212140
B15: Total | C15: =SUBTOTAL(109,EquipCosts101315[Cost]) -> 212140
B17: Recurring Annual Average Capital Costs
B18: Please enter your equipment costs and the estimated salvage values in the table below.
B19: *Note: If your organization is not-for-profit, later calculations will ignore the depreciation values.
B21: Equipment | C21: Cost | D21: Estimated Salvage Value | E21: Depreciation
B22: Computer/IT Equipment | C22: 0 | D22: 0 | E22: =IF(EquipCosts106[[#This Row],[Cost]]>0,(EquipCosts106[[#This Row],[Cost]]-EquipCosts106[[#This Row],[Estimated Salvage Value]])/'3. Key Assumptions'!D77,0) -> 0
B23: Telehealth Equipment | C23: =1*(EDMonthlyVolume*12) -> 10607 | D23: 100 | E23: =IF(EquipCosts106[[#This Row],[Cost]]>0,(EquipCosts106[[#This Row],[Cost]]-EquipCosts106[[#This Row],[Estimated Salvage Value]])/'3. Key Assumptions'!D77,0) -> 3502.333333
B24: Clinical Equipment | C24: 0 | D24: 0 | E24: =IF(EquipCosts106[[#This Row],[Cost]]>0,(EquipCosts106[[#This Row],[Cost]]-EquipCosts106[[#This Row],[Estimated Salvage Value]])/'3. Key Assumptions'!D75,0) -> 0
B25: Laboratory Equipment | C25: 0 | D25: 0 | E25: =IF(EquipCosts106[[#This Row],[Cost]]>0,(EquipCosts106[[#This Row],[Cost]]-EquipCosts106[[#This Row],[Estimated Salvage Value]])/'3. Key Assumptions'!D75,0) -> 0
B26: Radiology Equipment | C26: 0 | D26: 0 | E26: =IF(EquipCosts106[[#This Row],[Cost]]>0,(EquipCosts106[[#This Row],[Cost]]-EquipCosts106[[#This Row],[Estimated Salvage Value]])/'3. Key Assumptions'!D75,0) -> 0
B27: Pharmacy Equipment | C27: 0 | D27: 0 | E27: =IF(EquipCosts106[[#This Row],[Cost]]>0,(EquipCosts106[[#This Row],[Cost]]-EquipCosts106[[#This Row],[Estimated Salvage Value]])/'3. Key Assumptions'!D75,0) -> 0
B28: Administrative Equipment | E28: =(EquipCosts106[[#This Row],[Cost]]-EquipCosts106[[#This Row],[Estimated Salvage Value]])/'3. Key Assumptions'!$D$77 -> 0
B29: Other Equipment | C29: 0 | D29: 0 | E29: =IF(EquipCosts106[[#This Row],[Cost]]>0,(EquipCosts106[[#This Row],[Cost]]-EquipCosts106[[#This Row],[Estimated Salvage Value]])/'3. Key Assumptions'!D75,0) -> 0
B30: Total | C30: =SUBTOTAL(109,EquipCosts106[Cost]) -> 10607 | D30: =SUBTOTAL(109,EquipCosts106[Estimated Salvage Value]) -> 100 | E30: =SUBTOTAL(109,EquipCosts106[Depreciation]) -> 3502.333333
B32: Please enter any other capital costs in the table below.
B34: Other Capital Costs | C34: Cost
B35: Other Costs | C35: =22.1*(EDMonthlyVolume*12) -> 234414.7
B36: Total | C36: =SUBTOTAL(109,EquipCosts10131511[Cost]) -> 234414.7
B38: *Note: Equipment and capital costs (above) are expected average annual one year values. On Tab 9, these values are considered for year 1
B39: and then multiplied times the inflation rate (Tab 3) for years 2-5.
B40: Alternatively, you may enter your own equipment and capital costs for years 2-5 on Tab 9.
B42: Total Depreciation | C42: =IF(TaxRate>0,EquipCosts106[[#Totals],[Depreciation]],"Not Applicable") -> Not Applicable
B44: Total Equipment Costs | C44: =EquipCosts106[[#Totals],[Cost]] -> 10607
B46: Total Capital Costs | C46: =TotalEquipCosts+EquipCosts101315[[#Totals],[Cost]]+EquipCosts10131511[[#Totals],[Cost]] -> 457161.7

Sheet 7. Operating Costs
B6: This worksheet calculates the total operating costs required for your FED.
B8: ED and Other Operating Costs
B9: Please enter your facility, administrative, and other ED operating costs in the tables below.
B11: Facility Cost | C11: Cost | D11: Overhead rate per facility gross square foot:
B12: Utilities & Maintenance | G12: 3.23
B13: Environmental Services
B14: Dietary
B15: Other Facility Cost (per sq ft) | C15: =12*Footage -> 239999.04
B16: Other Marginal Facility Cost | C16: =3*('8. Expected Revenue'!D41+'8. Expected Revenue'!D61) -> 71597.25
B17: Total | C17: =SUBTOTAL(109,ClinSuppCosts111416[Cost]) -> 311596.29
B18: Other Operating Costs | C18: Cost
B19: Other | C19: 0
B20: Other | C20: 0
B21: Other | C21: 0
B22: Total | C22: =SUBTOTAL(109,ClinSuppCosts111417[Cost]) -> 0
B24: ED Operating Cost | C24: Cost
B25: Medical/Surgical Supplies | C25: 0
B26: Contract Labor (Facilities, Marketing, IT, Billing, Security, Medical Records, etc.) | C26: 0
B27: Facilities
B28: Marketing | C28: 0
B29: IT Support | C29: 0
B30: Billing | C30: 0
B31: Security | C31: 0
B32: Medical Records | C32: 0
B33: Transport Costs | C33: 0
B34: Traveling/Continuing Education
B35: Other | C35: =(188*'8. Expected Revenue'!D41) -> 1994116
B36: Total | C36: =SUBTOTAL(109,ClinSuppCosts1114[Cost]) -> 1994116
B38: Ancillary Operating Costs (Laboratory, Radiology, Mammography, CT, Ultrasound, Pharmacy, Infusion, etc.)
B39: Please enter your ancillary costs in the tables below.
B41: Ancillary Cost | C41: Cost
B42: Medical Supplies | C42: 0
B43: Other
B44: Other
B45: Other
B46: Other
B47: Other
B48: Other Direct Cost | C48: =43*(OPMonthlyVolume*12) -> 570126.25
B49: Total | C49: =SUBTOTAL(109,LabCosts18[Cost]) -> 570126.25
B52: Total Ancillary Costs | C52: =LabCosts18[[#Totals],[Cost]] -> 570126.25
B54: Total Operating Costs | C54: =TotalAncillaryCosts+ClinSuppCosts111416[[#Totals],[Cost]]+ClinSuppCosts1114[[#Totals],[Cost]]+ClinSuppCosts111417[[#Totals],[Cost]] -> 2875838.54
B74: Facility Costs | C74: Cost
B75: Overhead | C75: 0
B76: Utilities & Maintenance | C76: 0
B77: Depreciation | C77: 0
B78: ? | C78: 0
B79: ? | C79: 0
B80: Total | C80: =SUBTOTAL(109,Table1182026182159[Cost]) -> 0
B81: Transfer Costs | C81: Cost
B82: ? | C82: 0
B83: ? | C83: 0
B84: ? | C84: 0
B85: ? | C85: 0
B86: ? | C86: 0
B87: Total | C87: =SUBTOTAL(109,Table118202618215[Cost]) -> 0

Sheet 8. Expected Revenue
B6: This worksheet calculates expected revenue based on payer mix and estimated reimbursement.
B9: Please enter your current estimated ED or outpatient payer mix into the table below.
B10: *Note: Payer mix is considered the same for outpatient and ED in subsequent calculations.
C12: Estimated ED / Hospital Outpatient Payer Mix | D12: Estimated %
C13: Medicare | D13: 0.267
C14: Medicaid | D14: 0.274
C15: Self-Pay/Uninsured | D15: 0.228
C16: Commercial | D16: 0.201
C17: Other (Tricare, Worker's Comp, etc.) | D17: 0.03
C18: Total | D18: =SUM(D13,D14,D15,D16,D17) -> 1
B21: Please enter your estimated reimbursement from each payer (based on charge) into the table below.
C23: Payer Reimbursement Rates | D23: Estimated %
C24: Medicare | D24: 0.129
C25: Medicaid | D25: 0.198
C26: Self-Pay/Uninsured | D26: 0.031
C27: Commercial | D27: 0.584
C28: Other (Tricare, Worker's Comp, etc.) | D28: 0.245
B31: Hospital cost to charge ratio | D31: 1
C39: Estimated ED Revenue
C41: Projected Annual ED Demand | D41: =EDMonthlyVolume*12 -> 10607
C43: Average Cost per ED Service | D43: =AverageChargeED*Cost_to_Charge -> 1845
C46: Annual Revenue by Payer | D46: Column1
C47: Medicare | D47: =IFERROR(D13*$D$41*$D$43*D24,0) -> 674046.5823
C48: Medicaid | D48: =IFERROR(D14*$D$41*$D$43*D25,0) -> 1061707.029
C49: Self-Pay/Uninsured | D49: =IFERROR(D15*$D$41*$D$43*D26,0) -> 138320.1592
C50: Commercial | D50: =IFERROR(D16*$D$41*$D$43*D27,0) -> 2297194.902
C51: Other (Tricare, Worker's Comp, etc.) | D51: =IFERROR(D17*$D$41*$D$43*D28,0) -> 143838.8752
C52: Total | D52: =SUM(D47:D51) -> 4315107.548
C54: Total ED Services Revenue | D54: =D52 -> 4315107.548
C59: Estimated Outpatient Revenue
C61: Projected Annual Outpatient Demand | D61: =OPMonthlyVolume*12 -> 13258.75
C63: Average Cost per Outpatient Service | D63: =AverageChargeOutpatient*Cost_to_Charge -> 1308
C66: Annual Revenue by Payer | D66: Column1
C67: Medicare | D67: =IFERROR(D13*$D$61*$D$63*D24,0) -> 597325.8331
C68: Medicaid | D68: =IFERROR(D14*$D$61*$D$63*D25,0) -> 940862.3261
C69: Self-Pay/Uninsured | D69: =IFERROR(D15*$D$61*$D$63*D26,0) -> 122576.4013
C70: Commercial | D70: =IFERROR(D16*$D$61*$D$63*D27,0) -> 2035725.564
C71: Other (Tricare, Worker's Comp, etc.) | D71: =IFERROR(D17*$D$61*$D$63*D28,0) -> 127466.9707
C72: Total | D72: =SUM(D67:D71) -> 3823957.095
C74: Total Outpatient Services Revenue | D74: =D72 -> 3823957.095
C77: Total Revenue | D77: =SUM(D54,D74) -> 8139064.643

Sheet 9. Pro Forma
B6: This worksheet provides a summary using the data entered on previous sheets.
B7: *Note: There is no data entry required on this sheet.
B10: Assumptions
B12: Construction/Renovation Costs | E12: ='6. Capital Costs'!C13 -> 0 | G12: Volume Growth Rate | J12: =DemandGrowthRate -> 0.00885
B13: Other Initial Investment Costs | E13: ='6. Capital Costs'!C14 -> 212140 | G13: Inflation Rate on Costs | J13: ='3. Key Assumptions'!D13 -> 0.03
B14: Staffing Cost | E14: =TotalStaffingCost -> 5705111.858 | G14: Organizational Tax Rate | J14: =TaxRate -> 0
B15: Equipment Cost | E15: =TotalEquipCosts -> 10607 | G15: Cost of Capital | J15: =CostofCapital -> 0.04
B16: Other Capital Cost | E16: =OtherCapitalCosts -> 234414.7 | G16: Purchasing Discount | J16: =Discount -> 0
B17: =ClinSuppCosts111416[[#Headers],[Facility Cost]] -> Facility Cost | E17: =ClinSuppCosts111416[[#Totals],[Cost]] -> 311596.29 | G17: Medicare Reimbursement Growth Rate | J17: ='3. Key Assumptions'!D62 -> 0.022
B18: =ClinSuppCosts1114[[#Headers],[ED Operating Cost]] -> ED Operating Cost | E18: =ClinSuppCosts1114[[#Totals],[Cost]] -> 1994116 | G18: Overhead Rate (per sq. ft.) | J18: ='7. Operating Costs'!G12 -> 3.23
B19: =LabCosts18[[#Headers],[Ancillary Cost]] -> Ancillary Cost | E19: =TotalAncillaryCosts -> 570126.25 | G19: Facility Square Footage | J19: =Footage -> 19999.92
E26: FED Operating Year
E27: Initial Investment | F27: Year 1 | G27: Year 2 | H27: Year 3 | I27: Year 4 | J27: Year 5
B28: Net Patient Revenue
B29: ED Services
B30: Medicare | F30: ='8. Expected Revenue'!D47 -> 674046.5823 | G30: =F30*(1+$J$12)*(1+$J$17) -> 694972.1563 | H30: =G30*(1+$J$12)*(1+$J$17) -> 716547.3584 | I30: =H30*(1+$J$12)*(1+$J$17) -> 738792.3562 | J30: =I30*(1+$J$12)*(1+$J$17) -> 761727.9432
B31: Medicaid | F31: ='8. Expected Revenue'!D48 -> 1061707.029 | G31: =F31*(1+$J$12) -> 1071103.136 | H31: =G31*(1+$J$12) -> 1080582.399 | I31: =H31*(1+$J$12) -> 1090145.553 | J31: =I31*(1+$J$12) -> 1099793.341
B32: Self-Pay/Uninsured | F32: ='8. Expected Revenue'!D49 -> 138320.1592 | G32: =F32*(1+$J$12) -> 139544.2926 | H32: 140779.2596 | I32: 142025.1561 | J32: 143282.0787
B33: Commercial | F33: ='8. Expected Revenue'!D50 -> 2297194.902 | G33: 2317525.077 | H33: 2338035.174 | I33: 2358726.785 | J33: 2379601.518
B34: Other | F34: ='8. Expected Revenue'!D51 -> 143838.8752 | G34: 145111.8493 | H34: 146396.0892 | I34: 147691.6946 | J34: 148998.766
B35: Total ED Services Revenue | F35: =SUM(F30:F34) -> 4315107.548 | G35: =SUM(G30:G34) -> 4368256.511 | H35: =SUM(H30:H34) -> 4422340.28 | I35: =SUM(I30:I34) -> 4477381.545 | J35: =SUM(J30:J34) -> 4533403.646
B37: Outpatient Services
B38: Medicare | F38: ='8. Expected Revenue'!D67 -> 597325.8331 | G38: =F38*(1+$J$12)*(1+$J$17) -> 615869.6344 | H38: =G38*(1+$J$12)*(1+$J$17) -> 634989.1225 | I38: =H38*(1+$J$12)*(1+$J$17) -> 654702.1693 | J38: =I38*(1+$J$12)*(1+$J$17) -> 675027.2017
B39: Medicaid | F39: ='8. Expected Revenue'!D68 -> 940862.3261 | G39: =F39*(1+$J$12) -> 949188.9577 | H39: =G39*(1+$J$12) -> 957589.28 | I39: =H39*(1+$J$12) -> 966063.9451 | J39: =I39*(1+$J$12) -> 974613.611
B40: Self-Pay/Uninsured | F40: ='8. Expected Revenue'!D69 -> 122576.4013 | G40: =F40*(1+$J$12) -> 123661.2024 | H40: 124755.6041 | I40: 125859.6911 | J40: 126973.5494
B41: Commercial | F41: ='8. Expected Revenue'!D70 -> 2035725.564 | G41: 2053741.735 | H41: 2071917.349 | I41: 2090253.818 | J41: 2108752.564
B42: Other | F42: ='8. Expected Revenue'!D71 -> 127466.9707 | G42: 128595.0534 | H42: 129733.1197 | I42: 130881.2578 | J42: 132039.5569
B43: Total Outpatient Services Revenue | F43: =SUM(F38:F42) -> 3823957.095 | G43: =SUM(G38:G42) -> 3871056.583 | H43: =SUM(H38:H42) -> 3918984.476 | I43: =SUM(I38:I42) -> 3967760.881 | J43: =SUM(J38:J42) -> 4017406.483
B45: Total Revenues | F45: =SUM(F35,F43) -> 8139064.643 | G45: =SUM(G35,G43) -> 8239313.094 | H45: =SUM(H35,H43) -> 8341324.756 | I45: =SUM(I35,I43) -> 8445142.426 | J45: =SUM(J35,J43) -> 8550810.13
B47: Less:
B48: Capital Cost
B49: Initial Investment Cost (Amortized Portion) | F49: =(EquipCosts101315[[#Totals],[Cost]])/15*1.05 -> 14849.8 | G49: =(EquipCosts101315[[#Totals],[Cost]])/15*1.05 -> 14849.8 | H49: =(EquipCosts101315[[#Totals],[Cost]])/15*1.05 -> 14849.8 | I49: =(EquipCosts101315[[#Totals],[Cost]])/15*1.05 -> 14849.8 | J49: =(EquipCosts101315[[#Totals],[Cost]])/15*1.05 -> 14849.8
B50: Equipment Cost | F50: =E15 -> 10607 | G50: =F50*(1+$J$13) -> 10925.21 | H50: =G50*(1+$J$13) -> 11252.9663 | I50: 11590.55529 | J50: 11938.27195
B51: Other Capital Cost | F51: =E16 -> 234414.7 | G51: =F51*(1+$J$13) -> 241447.141 | H51: 248690.5552 | I51: 256151.2719 | J51: 263835.81
B53: Operating Cost
B54: =B14 -> Staffing Cost | F54: =E14 -> 5705111.858 | G54: =F54*(1+$J$13) -> 5876265.214 | H54: =G54*(1+$J$13) -> 6052553.171 | I54: =H54*(1+$J$13) -> 6234129.766 | J54: =I54*(1+$J$13) -> 6421153.659
B55: =B17 -> Facility Cost | F55: =E17 -> 311596.29 | G55: =F55*(1+$J$13) -> 320944.1787 | H55: 330572.5041 | I55: 340489.6792 | J55: 350704.3696
B56: =B18 -> ED Operating Cost | F56: =E18 -> 1994116 | G56: 2053939.48 | H56: 2115557.664 | I56: 2179024.394 | J56: 2244395.126
B57: =B19 -> Ancillary Cost | F57: =E19 -> 570126.25 | G57: 587230.0375 | H57: 604846.9386 | I57: 622992.3468 | J57: 641682.1172
B58: Total Operating Cost | F58: =SUM(F54:F57) -> 8580950.398 | G58: =SUM(G54:G57) -> 8838378.91 | H58: =SUM(H54:H57) -> 9103530.278 | I58: =SUM(I54:I57) -> 9376636.186 | J58: =SUM(J54:J57) -> 9657935.272
B60: Depreciation | F60: =IF(Depreciation="Not Applicable",0,Depreciation) -> 0 | G60: =IF(Depreciation="Not Applicable",0,Depreciation) -> 0 | H60: =IF(Depreciation="Not Applicable",0,Depreciation) -> 0 | I60: =IF(Depreciation="Not Applicable",0,Depreciation) -> 0 | J60: =IF(Depreciation="Not Applicable",0,Depreciation) -> 0
B61: Total Cost | F61: =SUM(F49:F51,F54:F57,F60:F60) -> 8840821.898 | G61: =SUM(G49:G51,G54:G57,G60:G60) -> 9105601.061 | H61: =SUM(H49:H51,H54:H57,H60:H60) -> 9378323.599 | I61: =SUM(I49:I51,I54:I57,I60:I60) -> 9659227.813 | J61: =SUM(J49:J51,J54:J57,J60:J60) -> 9948559.154
B63: Income before Taxes | F63: =F45-F61 -> -701757.2555 | G63: =G45-G61 -> -866287.967 | H63: =H45-H61 -> -1036998.844 | I63: =I45-I61 -> -1214085.387 | J63: =J45-J61 -> -1397749.024
B64: Taxes | F64: =$J$14*F63 -> 0 | G64: =$J$14*G63 -> 0 | H64: =$J$14*H63 -> 0 | I64: =$J$14*I63 -> 0 | J64: =$J$14*J63 -> 0
B65: Projected Net Income | F65: =F63-F64 -> -701757.2555 | G65: =G63-G64 -> -866287.967 | H65: =H63-H64 -> -1036998.844 | I65: =I63-I64 -> -1214085.387 | J65: =J63-J64 -> -1397749.024
B66: Net Margin | F66: =F65/F45 -> -0.08622087258 | G66: =G65/G45 -> -0.1051407996 | H66: =H65/H45 -> -0.1243206414 | I66: =I65/I45 -> -0.1437613868 | J66: =J65/J45 -> -0.1634639294
B67: Plus: Depreciation | F67: =F60 -> 0 | G67: =G60 -> 0 | H67: =H60 -> 0 | I67: =I60 -> 0 | J67: =J60 -> 0
B68: Plus: Net building/equipment salvage value | J68: =EquipCosts106[[#Totals],[Estimated Salvage Value]] -> 100
B70: Net Cash Flow | E70: =-SUM(E49:E49) -> 0 | F70: =F65+F67+F68 -> -701757.2555 | G70: =G65+G67+G68 -> -866287.967 | H70: =H65+H67+H68 -> -1036998.844 | I70: =I65+I67+I68 -> -1214085.387 | J70: =J65+J67+J68 -> -1397649.024
B72: Cumulative Net Cash Flow | E72: =E70 -> 0 | F72: =E70+F70 -> -701757.2555 | G72: =E70+F70+G70 -> -1568045.222 | H72: =E70+F70+G70+H70 -> -2605044.066 | I72: =E70+F70+G70+H70+I70 -> -3819129.453 | J72: =E70+F70+G70+H70+I70+J70 -> -5216778.477
E76: Year 1 | M76: ed | N76: op
B77: Average Payment Needed Per Visit | E77: =-F65/('8. Expected Revenue'!D41+'8. Expected Revenue'!D61) -> 29.40436632 | M77: ='8. Expected Revenue'!D54/'8. Expected Revenue'!D77 -> 0.5301724138 | N77: ='8. Expected Revenue'!D74/'8. Expected Revenue'!D77 -> 0.4698275862
B78: Annual Payment Needed | E78: =-'9. Pro Forma'!F65 -> 701757.2555
B79: % increase needed from Medicare | E79: =-'9. Pro Forma'!F65/('8. Expected Revenue'!D47+'8. Expected Revenue'!D67) -> 0.5519682879
F81: =IF(F72<0,"n/m",ABS(E72)/F70) -> n/m | G81: =IF(G72<0,"n/m",ABS(F72)/G70) -> n/m | H81: =IF(H72<0,"n/m",ABS(G72)/H70) -> n/m | I81: =IF(I72<0,"n/m",ABS(H72)/I70) -> n/m | J81: =IF(J72<0,"n/m",ABS(I72)/J70) -> n/m
B84: NPV | E84: =NPV(J15,F70:J70)+E70 -> -4584157.605
B85: IRR | E85: =IFERROR(IRR(E70:J70),"Unable to Calculate") -> Unable to Calculate
B86: MIRR | E86: =IFERROR(MIRR(E70:J70,$J$15,$J$15),"Unable to Calculate") -> -1
B87: Payback Period | E87: =IFERROR(COUNTIF(F72:J72,"<0")+INDEX(F81:J81,COUNTIF(F72:J72,"<0")+1),"n/a") -> n/a
B88: Payback Period (Show) | E88: =IF(E87<=5,E87,"Greater Than Projected Time Period") -> Greater Than Projected Time Period

Sheet 10. Feasibility Results
C6: This worksheet provides a profitability analysis, scenario analysis, and sensitivity analysis using the information from previous worksheets.
C7: *Note: There is no data entry required on this sheet.
C10: Profitability Analysis for: | F10: =HospitalName -> General Hospital
C12: =IF('9. Pro Forma'!E84>0,"Based on your estimated costs and revenues, converting to a FED is profitable.","Based on your estimated costs and revenues, converting to a FED is not profitable.") -> Based on your estimated costs and revenues, converting to a FED is not profitable.
C14: Results:
C16: NPV | D16: IRR | E16: MIRR | F16: Payback Period
C17: ='9. Pro Forma'!E84 -> -4584157.605 | D17: ='9. Pro Forma'!E85 -> Unable to Calculate | E17: ='9. Pro Forma'!E86 -> -1 | F17: ='9. Pro Forma'!E88 -> Greater Than Projected Time Period
C19: Explanation:
C21: NPV ≥ 0? | D21: IRR > Cost of Capital? | E21: MIRR > Cost of Capital? | F21: Payback Period < 5?
C22: =IF(C17>0, "Yes","No") -> No | D22: =IF(D17="Unable to Calculate","N/A",IF(D17>CostofCapital,"Yes","No")) -> N/A | E22: =IF(E17>CostofCapital,"Yes","No") -> No | F22: =IF(F17<5,"Yes","No") -> No
C30: Total Costs vs. Total Revenue (Over 5 Year Period)
C55: Total Operating Costs (Over 5 Year Period)
C79: Total Revenues for Emergency Services by Payer Mix (Over 5 Year Period)
C106: Sensitivity Analysis
C118: Changes in Annual Patient Volume (ED)
C119: % Change in Patient Volume | D119: Resulting Patient Volume | E119: Resulting NPV
C120: -0.5 | D120: =(EDMonthlyVolume*12)*(1+C120) -> 5303.5 | E120: ='Data Tables'!D149 -> -14871197.57
C121: -0.4 | D121: 6364.2 | E121: ='Data Tables'!D150 -> -12903927.89
C122: -0.3 | D122: 7424.9 | E122: ='Data Tables'!D151 -> -10936658.21
C123: -0.2 | D123: 8485.6 | E123: ='Data Tables'!D152 -> -8969388.525
C124: -0.1 | D124: 9546.3 | E124: ='Data Tables'!D153 -> -7002118.842
C125: 0 | D125: 10607 | E125: ='Data Tables'!D154 -> -5034849.159
C126: 0.1 | D126: 11667.7 | E126: ='Data Tables'!D155 -> -3067579.476
C127: 0.2 | D127: 12728.4 | E127: ='Data Tables'!D156 -> -1100309.793
C128: 0.3 | D128: 13789.1 | E128: ='Data Tables'!D157 -> 866959.8896
C129: 0.4 | D129: 14849.8 | E129: ='Data Tables'!D158 -> 2834229.572
C130: 0.5 | D130: 15910.5 | E130: ='Data Tables'!D159 -> 4801499.255
C134: Changes in Annual Patient Volume (Outpatient)
C135: % Change in Patient Volume | D135: Resulting Patient Volume | E135: Resulting NPV
C136: -0.5 | D136: =(OPMonthlyVolume*12)*(1+C136) -> 6629.375 | E136: ='Data Tables'!D163 -> -13751613.2
C137: -0.4 | D137: 7955.25 | E137: ='Data Tables'!D164 -> -12008260.39
C138: -0.3 | D138: 9281.125 | E138: ='Data Tables'!D165 -> -10264907.58
C139: -0.2 | D139: 10607 | E139: ='Data Tables'!D166 -> -8521554.776
C140: -0.1 | D140: 11932.875 | E140: ='Data Tables'!D167 -> -6778201.967
C141: 0 | D141: 13258.75 | E141: ='Data Tables'!D168 -> -5034849.159
C142: 0.1 | D142: 14584.625 | E142: ='Data Tables'!D169 -> -3291496.35
C143: 0.2 | D143: 15910.5 | E143: ='Data Tables'!D170 -> -1548143.542
C144: 0.3 | D144: 17236.375 | E144: ='Data Tables'!D171 -> 195209.2662
C145: 0.4 | D145: 18562.25 | E145: ='Data Tables'!D172 -> 1938562.075
C146: 0.5 | D146: 19888.125 | E146: ='Data Tables'!D173 -> 3681914.883
C150: Changes in Medicare Reimbursement Rate
C151: % Change in Medicare Rate | D151: Resulting Medicare Reimbursement Growth Rate | E151: Resulting NPV
C152: -1 | D152: =MedicareRate*(1+C152) -> 0 | E152: ='Data Tables'!D178 -> -5285836.692
C153: -0.75 | D153: 0.0055 | E153: ='Data Tables'!D179 -> -5224101.055
C154: -0.5 | D154: 0.011 | E154: ='Data Tables'!D180 -> -5161694.906
C155: -0.25 | D155: 0.0165 | E155: ='Data Tables'!D181 -> -5098612.772
C156: 0 | D156: 0.022 | E156: ='Data Tables'!D182 -> -5034849.159
C157: 0.25 | D157: 0.0275 | E157: ='Data Tables'!D183 -> -4970398.547
C158: 0.5 | D158: 0.033 | E158: ='Data Tables'!D184 -> -4905255.392
C159: 0.75 | D159: 0.0385 | E159: ='Data Tables'!D185 -> -4839414.128
C160: 1 | D160: 0.044 | E160: ='Data Tables'!D186 -> -4772869.165
C166: Scenario Analysis
C175: Current Values | F175: Scenario Values
C177: Organizational Assumptions | F177: Organizational Assumptions
C179: Cost of Capital | D179: ='9. Pro Forma'!J15 -> 0.04 | F179: Cost of Capital | H179: ='Scenario Model'!J75 -> 0.04
C180: Tax Rate | D180: ='9. Pro Forma'!J14 -> 0 | F180: Tax Rate | H180: ='Scenario Model'!J74 -> 0
C181: Purchasing Discount | D181: =Discount -> 0 | F181: Purchasing Discount | H181: =GETPIVOTDATA("Value",'Scenario Data'!$F$46,"Variable","Purchasing Discount") -> 0.2
C182: Demand Growth Rate | D182: ='9. Pro Forma'!J12 -> 0.00885 | F182: Demand Growth Rate | H182: ='Scenario Model'!J72 -> 0.08
C184: Hospital Payer Mix | F184: Hospital Payer Mix
C186: Medicare | D186: ='8. Expected Revenue'!D13 -> 0.267 | F186: Medicare | H186: ='Scenario Model'!D8 -> 0.338
C187: Medicaid | D187: ='8. Expected Revenue'!D14 -> 0.274 | F187: Medicaid | H187: ='Scenario Model'!D9 -> 0.207
C188: Self Pay | D188: ='8. Expected Revenue'!D15 -> 0.228 | F188: Self Pay | H188: ='Scenario Model'!D10 -> 0.185
C189: Commercial | D189: ='8. Expected Revenue'!D16 -> 0.201 | F189: Commercial | H189: ='Scenario Model'!D11 -> 0.247
C190: Other | D190: ='8. Expected Revenue'!D17 -> 0.03 | F190: Other | H190: ='Scenario Model'!D12 -> 0.023
C192: Payer Reimbursement | F192: Payer Reimbursement
C194: Medicare | D194: ='8. Expected Revenue'!D24 -> 0.129 | F194: Medicare | H194: ='Scenario Model'!D20 -> 0.99
C195: Medicaid | D195: ='8. Expected Revenue'!D25 -> 0.198 | F195: Medicaid | H195: ='Scenario Model'!D21 -> 0.9
C196: Self Pay | D196: ='8. Expected Revenue'!D26 -> 0.031 | F196: Self Pay | H196: ='Scenario Model'!D22 -> 0.031
C197: Commercial | D197: ='8. Expected Revenue'!D27 -> 0.584 | F197: Commercial | H197: ='Scenario Model'!D23 -> 0.584
C198: Other | D198: ='8. Expected Revenue'!D28 -> 0.245 | F198: Other | H198: ='Scenario Model'!D24 -> 0.245
C200: Cash Flow Assumptions | F200: Cash Flow Assumptions
C202: Initial Investment | D202: ='9. Pro Forma'!E70 -> 0 | F202: Initial Investment | H202: ='Scenario Model'!E130 -> -212140
C203: Total Revenues | D203: ='9. Pro Forma'!F45 -> 8139064.643 | F203: Total Revenues | H203: ='Scenario Model'!F107 -> 24972614.21
C204: Total Costs | D204: ='9. Pro Forma'!F61 -> 8840821.898 | F204: Total Costs | H204: ='Scenario Model'!F122 -> 8888450.44
C206: Income Before Taxes | D206: ='9. Pro Forma'!F63 -> -701757.2555 | F206: Income Before Taxes | H206: ='Scenario Model'!F124 -> 16084163.77
C207: Taxes | D207: ='9. Pro Forma'!F64 -> 0 | F207: Taxes | H207: ='Scenario Model'!F125 -> 0
C208: Net Income After Taxes | D208: ='9. Pro Forma'!F65 -> -701757.2555 | F208: Net Income After Taxes | H208: ='Scenario Model'!F126 -> 16084163.77
C210: Current Results | F210: Results Under Chosen Scenario(s)
C212: NPV | D212: ='9. Pro Forma'!E84 -> -4584157.605 | F212: NPV | H212: ='Scenario Model'!E137 -> 90521592.3
C213: IRR | D213: ='9. Pro Forma'!E85 -> Unable to Calculate | F213: IRR | H213: ='Scenario Model'!E138 -> 75.94446511
C214: MIRR | D214: ='9. Pro Forma'!E86 -> -1 | F214: MIRR | H214: ='Scenario Model'!E139 -> 2.493514753
C215: Payback Period | D215: ='9. Pro Forma'!E88 -> Greater Than Projected Time Period | F215: Payback Period | H215: ='Scenario Model'!E141 -> 0.0131893708
C220: Recommendations & Other Considerations
C242: You may also want to consider the following information regarding Medicaid expansion, competition, and affiliation.
C245: =IF(ExpansionDecision=TRUE,"You indicated that your hospital is in a state that has expanded Medicaid.","You indicated that your hospital is in a state that has not expanded Medicaid.") -> You indicated that your hospital is in a state that has not expanded Medicaid.
C250: You also indicated that your organization has:
C252: =EDNearby -> 1 | D252: Hospitals and/or EDs within a 35 mile radius
C253: =OutpatientNearby -> 3 | D253: Outpatient Lab/Imaging Facilities within a 35 radius
C262: =IF(Affiliation="YES","You indicated that your hospital is affiliated with another hospital or health system.","You indicated that your hospital is not affiliated with another hospital or health system.") -> You indicated that your hospital is affiliated with another hospital or health system.

Sheet Scenario Data (hidden)
B2: Scenario Data
B4: Scenario | C4: Variable | D4: Value
B5: Base Case
B6: Base Case
B7: Base Case
B8: Base Case
B9: Base Case
B10: Base Case
B11: Base Case
B12: Base Case
B13: Base Case
B17: Scenario | C17: Variable | D17: Value | F17: Row Labels | G17: Sum of Value
B18: 0.03 | C18: Cost of Capital | D18: 0.03 | F18: Cost of Capital | G18: 0.04
B19: 0.04 | C19: Cost of Capital | D19: 0.04 | F19: Grand Total | G19: 0.04
B20: 0.05 | C20: Cost of Capital | D20: 0.05
B21: 0.06 | C21: Cost of Capital | D21: 0.06
B22: 0.08 | C22: Cost of Capital | D22: 0.08
B23: 0.1 | C23: Cost of Capital | D23: 0.1
B24: 0.12 | C24: Cost of Capital | D24: 0.12
B25: 0.15 | C25: Cost of Capital | D25: 0.15
B26: 0.19 | C26: Cost of Capital | D26: 0.19
B27: 0.22 | C27: Cost of Capital | D27: 0.22
B33: Scenario | C33: Variable | D33: Value | F33: Row Labels | G33: Sum of Value
B34: 0 | C34: Tax Rate | D34: 0 | F34: Tax Rate | G34: 0
B35: 0.2 | C35: Tax Rate | D35: 0.2 | F35: Grand Total | G35: 0
B36: 0.25 | C36: Tax Rate | D36: 0.25
B37: 0.3 | C37: Tax Rate | D37: 0.3
B38: 0.35 | C38: Tax Rate | D38: 0.35
B39: 0.4 | C39: Tax Rate | D39: 0.4
B46: Scenario | C46: Variable | D46: Value | F46: Row Labels | G46: Sum of Value
B47: 0 | C47: Purchasing Discount | D47: 0 | F47: Purchasing Discount | G47: 0.2
B48: 0.05 | C48: Purchasing Discount | D48: 0.05 | F48: Grand Total | G48: 0.2
B49: 0.1 | C49: Purchasing Discount | D49: 0.1
B50: 0.15 | C50: Purchasing Discount | D50: 0.15
B51: 0.2 | C51: Purchasing Discount | D51: 0.2
B52: 0.25 | C52: Purchasing Discount | D52: 0.25
B53: 0.3 | C53: Purchasing Discount | D53: 0.3
B54: 0.35 | C54: Purchasing Discount | D54: 0.35
B55: 0.4 | C55: Purchasing Discount | D55: 0.4
B56: 0.45 | C56: Purchasing Discount | D56: 0.45
B65: Scenario | C65: Variable | D65: Value | F65: Row Labels | G65: Sum of Value
B66: Hospital Affiliation | C66: Medicare Reimbursement | D66: ='8. Expected Revenue'!D24 -> 0.129 | F66: Medicare Reimbursement | G66: 0.99
B67: Hospital Affiliation | C67: Medicaid Reimbusement | D67: ='8. Expected Revenue'!D25 -> 0.198 | F67: Medicaid Reimbusement | G67: 0.9
B68: No Affiliation | C68: Medicare Reimbursement | D68: 0.25 | F68: Grand Total | G68: 1.89
B69: No Affiliation | C69: Medicaid Reimbusement | D69: 0
B74: Scenario | C74: Variable | D74: Value | F74: Row Labels | G74: Sum of Value
B75: -0.1 | C75: Demand Growth Rate | D75: -0.1 | F75: Demand Growth Rate | G75: 0.08
B76: -0.09 | C76: Demand Growth Rate | D76: -0.09 | F76: Grand Total | G76: 0.08
B77: -0.08 | C77: Demand Growth Rate | D77: -0.08
B78: -0.07 | C78: Demand Growth Rate | D78: -0.07
B79: -0.06 | C79: Demand Growth Rate | D79: -0.06
B80: -0.05 | C80: Demand Growth Rate | D80: -0.05
B81: -0.04 | C81: Demand Growth Rate | D81: -0.04
B82: =-3% -> -0.03 | C82: Demand Growth Rate | D82: =-3% -> -0.03
B83: -0.02 | C83: Demand Growth Rate | D83: -0.02
B84: -0.01 | C84: Demand Growth Rate | D84: -0.01
B85: 0 | C85: Demand Growth Rate | D85: 0
B86: 0.01 | C86: Demand Growth Rate | D86: 0.01
B87: 0.02 | C87: Demand Growth Rate | D87: 0.02
B88: 0.03 | C88: Demand Growth Rate | D88: 0.03
B89: 0.04 | C89: Demand Growth Rate | D89: 0.04
B90: 0.05 | C90: Demand Growth Rate | D90: 0.05
B91: 0.06 | C91: Demand Growth Rate | D91: 0.06
B92: 0.07 | C92: Demand Growth Rate | D92: 0.07
B93: 0.08 | C93: Demand Growth Rate | D93: 0.08
B94: 0.09 | C94: Demand Growth Rate | D94: 0.09
B95: 0.1 | C95: Demand Growth Rate | D95: 0.1
B98: Scenario | C98: Variable | D98: Value | F98: Row Labels | G98: Sum of Value
B99: Favorable Payer Mix | C99: Medicare | D99: 0.45 | F99: Commercial | G99: 0.247
B100: Favorable Payer Mix | C100: Medicaid | D100: 0.16 | F100: Medicaid | G100: 0.207
B101: Favorable Payer Mix | C101: Self Pay | D101: 0.05 | F101: Medicare | G101: 0.338
B102: Favorable Payer Mix | C102: Commercial | D102: 0.34 | F102: Other | G102: 0.023
B103: Favorable Payer Mix | C103: Other | D103: 0 | F103: Self Pay | G103: 0.185
B104: Current Payer Mix | C104: Medicare | D104: ='8. Expected Revenue'!D13 -> 0.267 | F104: Grand Total | G104: 1
B105: Current Payer Mix | C105: Medicaid | D105: ='8. Expected Revenue'!D14 -> 0.274
B106: Current Payer Mix | C106: Self Pay | D106: ='8. Expected Revenue'!D15 -> 0.228
B107: Current Payer Mix | C107: Commercial | D107: ='8. Expected Revenue'!D16 -> 0.201
B108: Current Payer Mix | C108: Other | D108: ='8. Expected Revenue'!D17 -> 0.03
B109: Less Favorable Payer Mix | C109: Medicare | D109: 0.2
B110: Less Favorable Payer Mix | C110: Medicaid | D110: 0.5
B111: Less Favorable Payer Mix | C111: Self Pay | D111: 0.15
B112: Less Favorable Payer Mix | C112: Commercial | D112: 0.1
B113: Less Favorable Payer Mix | C113: Other | D113: 0.05

Sheet Data Tables (hidden)
C7: Estimated Hospital Payer Mix | D7: Estimated %
C8: Medicare | D8: ='8. Expected Revenue'!D13 -> 0.267
C9: Medicaid | D9: ='8. Expected Revenue'!D14 -> 0.274
C10: Self Pay | D10: ='8. Expected Revenue'!D15 -> 0.228
C11: Commercial | D11: ='8. Expected Revenue'!D16 -> 0.201
C12: Other (TriCare, etc.) | D12: ='8. Expected Revenue'!D17 -> 0.03
C13: Total | D13: =SUM(D8,D9,D10,D11,D12) -> 1
B16: Please enter your estimated reimbursement from each payer into the table below.
C19: Payer Reimbursement Rates | D19: Estimated %
C20: Medicare | D20: ='8. Expected Revenue'!D24 -> 0.129
C21: Medicaid | D21: ='8. Expected Revenue'!D25 -> 0.198
C22: Self Pay | D22: ='8. Expected Revenue'!D26 -> 0.031
C23: Commercial | D23: ='8. Expected Revenue'!D27 -> 0.584
C24: Other (TriCare, etc.) | D24: ='8. Expected Revenue'!D28 -> 0.245
C26: % Uncollected | D26: ='8. Expected Revenue'!#REF! -> 
C28: Estimated ED Revenue
C30: Projected Annual ED Demand | D30: =(EDMonthlyVolume*12)*(1+F30) -> 10607 | F30: 0
C32: Average Charge per ED Service | D32: =AverageChargeED*Cost_to_Charge -> 1845
C35: Annual Revenue by Payer | D35: Column1
C36: Medicare | D36: =IFERROR(D8*$D$30*$D$32*D20,0) -> 674046.5823
C37: Medicaid | D37: =IFERROR(D9*$D$30*$D$32*D21,0) -> 1061707.029
C38: Self Pay | D38: =IFERROR(D10*$D$30*$D$32*D22,0) -> 138320.1592
C39: Commercial | D39: =IFERROR(D11*$D$30*$D$32*D23,0) -> 2297194.902
C40: Other | D40: =IFERROR(D12*$D$30*$D$32*D24,0) -> 143838.8752
C41: Total | D41: =SUM(D36:D40) -> 4315107.548
C43: Total ED Services Revenue | D43: =D41*(1-$D$26) -> 
C48: Estimated Outpatient Revenue
C50: Projected Annual Outpatient Demand | D50: =(OPMonthlyVolume*12)*(1+F50) -> 13258.75 | F50: 0
C52: Average Charge per Outpatient Service | D52: =AverageChargeOutpatient*Cost_to_Charge -> 1308
C55: Annual Revenue by Payer | D55: Column1
C56: Medicare | D56: =IFERROR(D8*$D$50*$D$52*D20,0) -> 597325.8331
C57: Medicaid | D57: =IFERROR(D9*$D$50*$D$52*D21,0) -> 940862.3261
C58: Self Pay | D58: =IFERROR(D10*$D$50*$D$52*D22,0) -> 122576.4013
C59: Commercial | D59: =IFERROR(D11*$D$50*$D$52*D23,0) -> 2035725.564
C60: Other | D60: =IFERROR(D12*$D$50*$D$52*D24,0) -> 127466.9707
C61: Total | D61: =SUM(D56:D60) -> 3823957.095
C63: Total Outpatient Services Revenue | D63: =D61*(1-$D$26) -> 
B69: Cash Flow Assumptions
B71: Construction/Renovation costs | E71: ='6. Capital Costs'!C13 -> 0 | G71: Demand growth rate | J71: =DemandGrowthRate*(1+L71) -> 0.00885 | L71: 0
B72: Other Initial Investment costs | E72: ='6. Capital Costs'!C14 -> 212140 | G72: Inflation rate on costs | J72: =Inflation*(1+L72) -> 0.03 | L72: 0
B73: Staffing Costs | E73: =TotalStaffingCost -> 5705111.858 | G73: Organizational tax rate | J73: =TaxRate -> 0
B74: Equipment & costs | E74: =TotalEquipCosts*(1-Discount) -> 10607 | G74: Cost of capital | J74: =CostofCapital -> 0.04
B75: Other capital costs | E75: =OtherCapitalCosts -> 234414.7 | G75: Purchasing Discount | J75: =Discount -> 0
B76: Ancillary costs | E76: =TotalAncillaryCosts -> 570126.25 | G76: Medicare reimbursement growth rate | J76: ='3. Key Assumptions'!D62*(1+L76) -> 0.022 | L76: 0
B77: Facility Costs | E77: =ClinSuppCosts111416[[#Totals],[Cost]] -> 311596.29 | G77: Overhead rate (per sq. ft.) | J77: ='7. Operating Costs'!G12 -> 3.23
B78: Other Operating costs | E78: =ClinSuppCosts1114[[#Totals],[Cost]]+ClinSuppCosts111417[[#Totals],[Cost]] -> 1994116 | G78: Facility Square Footage | J78: =Footage -> 19999.92
E86: FED Operating Year
E87: Initial Investment | F87: Year 1 | G87: Year 2 | H87: Year 3 | I87: Year 4 | J87: Year 5
B88: Construction/Renovation costs | E88: =-'6. Capital Costs'!C13 -> 0
B89: Other Initial Investment costs | E89: =-'6. Capital Costs'!C14 -> -212140
B90: Net patient revenue
B91: ED Services
B92: Medicare | F92: =D8*D20*$D$30*$D$32 -> 674046.5823 | G92: =F92*(1+$J$71)*(1+$J$76) -> 694972.1563 | H92: =G92*(1+$J$71)*(1+$J$76) -> 716547.3584 | I92: =H92*(1+$J$71)*(1+$J$76) -> 738792.3562 | J92: =I92*(1+$J$71)*(1+$J$76) -> 761727.9432
B93: Medicaid | F93: =D9*D21*$D$30*$D$32 -> 1061707.029 | G93: =F93*(1+$J$71) -> 1071103.136 | H93: =G93*(1+$J$71) -> 1080582.399 | I93: =H93*(1+$J$71) -> 1090145.553 | J93: =I93*(1+$J$71) -> 1099793.341
B94: Self Pay | F94: =D10*D22*$D$30*$D$32 -> 138320.1592 | G94: =F94*(1+$J$71) -> 139544.2926 | H94: 140779.2596 | I94: 142025.1561 | J94: 143282.0787
B95: Commercial | F95: =D11*D23*$D$30*$D$32 -> 2297194.902 | G95: 2317525.077 | H95: 2338035.174 | I95: 2358726.785 | J95: 2379601.518
B96: Other | F96: =D12*D24*$D$30*$D$32 -> 143838.8753 | G96: 145111.8493 | H96: 146396.0892 | I96: 147691.6946 | J96: 148998.766
B97: Total ED Services Revenue | F97: =SUM(F92:F96) -> 4315107.548 | G97: =SUM(G92:G96) -> 4368256.511 | H97: =SUM(H92:H96) -> 4422340.28 | I97: =SUM(I92:I96) -> 4477381.545 | J97: =SUM(J92:J96) -> 4533403.646
B99: Outpatient Services
B100: Medicare | F100: =D8*D20*$D$50*$D$52 -> 597325.8331 | G100: =F100*(1+$J$71)*(1+$J$76) -> 615869.6344 | H100: =G100*(1+$J$71)*(1+$J$76) -> 634989.1225 | I100: =H100*(1+$J$71)*(1+$J$76) -> 654702.1693 | J100: =I100*(1+$J$71)*(1+$J$76) -> 675027.2017
B101: Medicaid | F101: =D9*D21*$D$50*$D$52 -> 940862.3261 | G101: =F101*(1+$J$71) -> 949188.9577 | H101: =G101*(1+$J$71) -> 957589.28 | I101: =H101*(1+$J$71) -> 966063.9451 | J101: =I101*(1+$J$71) -> 974613.611
B102: Self Pay | F102: =D10*D22*$D$50*$D$52 -> 122576.4013 | G102: =F102*(1+$J$71) -> 123661.2024 | H102: 124755.6041 | I102: 125859.6911 | J102: 126973.5494
B103: Commercial | F103: =D11*D23*$D$50*$D$52 -> 2035725.564 | G103: 2053741.735 | H103: 2071917.349 | I103: 2090253.818 | J103: 2108752.564
B104: Other | F104: =D12*D24*$D$50*$D$52 -> 127466.9708 | G104: 128595.0534 | H104: 129733.1197 | I104: 130881.2578 | J104: 132039.5569
B105: Total Outpatient Services Revenue | F105: =SUM(F100:F104) -> 3823957.095 | G105: =SUM(G100:G104) -> 3871056.583 | H105: =SUM(H100:H104) -> 3918984.476 | I105: =SUM(I100:I104) -> 3967760.881 | J105: =SUM(J100:J104) -> 4017406.483
B107: Total Revenues | F107: =SUM(F97,F105) -> 8139064.643 | G107: =SUM(G97,G105) -> 8239313.094 | H107: =SUM(H97,H105) -> 8341324.756 | I107: =SUM(I97,I105) -> 8445142.426 | J107: =SUM(J97,J105) -> 8550810.13
B110: Equipment & Supplies costs | F110: =E74 -> 10607 | G110: =F110*(1+$J$72) -> 10925.21 | H110: =G110*(1+$J$72) -> 11252.9663 | I110: 11590.55529 | J110: 11938.27195
B111: Other capital costs | F111: =E75 -> 234414.7 | G111: =F111*(1+$J$72) -> 241447.141 | H111: 248690.5552 | I111: 256151.2719 | J111: 263835.81
B113: Operating Costs
B114: Staffing costs | F114: =E73 -> 5705111.858 | G114: =F114*(1+$J$72) -> 5876265.214 | H114: =G114*(1+$J$72) -> 6052553.171 | I114: =H114*(1+$J$72) -> 6234129.766 | J114: =I114*(1+$J$72) -> 6421153.659
B115: Ancillary costs | F115: =E76 -> 570126.25 | G115: =F115*(1+$J$72) -> 587230.0375 | H115: 604846.9386 | I115: 622992.3468 | J115: 641682.1172
B116: Facility Costs | F116: =E77 -> 311596.29 | G116: 320944.1787 | H116: 330572.5041 | I116: 340489.6792 | J116: 350704.3696
B117: Other Operating costs | F117: =E78 -> 1994116 | G117: 2053939.48 | H117: 2115557.664 | I117: 2179024.394 | J117: 2244395.126
B118: Total Operating Costs | F118: =SUM(F114:F117) -> 8580950.398 | G118: =SUM(G114:G117) -> 8838378.91 | H118: =SUM(H114:H117) -> 9103530.278 | I118: =SUM(I114:I117) -> 9376636.186 | J118: =SUM(J114:J117) -> 9657935.272
B120: Incremental overhead | F120: =J77*J78 -> 64599.7416 | G120: 66537.73385 | H120: 68533.86586 | I120: 70589.88184 | J120: 72707.57829
B121: Depreciation | F121: ='9. Pro Forma'!F60 -> 0 | G121: ='9. Pro Forma'!G60 -> 0 | H121: ='9. Pro Forma'!H60 -> 0 | I121: ='9. Pro Forma'!I60 -> 0 | J121: ='9. Pro Forma'!J60 -> 0
B122: Total Costs | F122: =SUM(F110:F111,F114:F117,F120:F121) -> 8890571.84 | G122: =SUM(G110:G111,G114:G117,G120:G121) -> 9157288.995 | H122: =SUM(H110:H111,H114:H117,H120:H121) -> 9432007.665 | I122: =SUM(I110:I111,I114:I117,I120:I121) -> 9714967.895 | J122: =SUM(J110:J111,J114:J117,J120:J121) -> 10006416.93
B124: Income before taxes | F124: =F107-F122 -> -751507.1971 | G124: =G107-G122 -> -917975.9008 | H124: =H107-H122 -> -1090682.91 | I124: =I107-I122 -> -1269825.469 | J124: =J107-J122 -> -1455606.802
B125: Taxes | F125: =$J$73*F124 -> 0 | G125: =$J$73*G124 -> 0 | H125: =$J$73*H124 -> 0 | I125: =$J$73*I124 -> 0 | J125: =$J$73*J124 -> 0
B126: Projected net income | F126: =F124-F125 -> -751507.1971 | G126: =G124-G125 -> -917975.9008 | H126: =H124-H125 -> -1090682.91 | I126: =I124-I125 -> -1269825.469 | J126: =J124-J125 -> -1455606.802
B127: Plus: Depreciation | F127: =F121 -> 0 | G127: =G121 -> 0 | H127: =H121 -> 0 | I127: =I121 -> 0 | J127: =J121 -> 0
B128: Plus: Net building/equipment salvage value | J128: ='9. Pro Forma'!J68 -> 100
B130: Net cash flow | E130: =SUM(E88:E89) -> -212140 | F130: =F126+F127+F128 -> -751507.1971 | G130: =G126+G127+G128 -> -917975.9008 | H130: =H126+H127+H128 -> -1090682.91 | I130: =I126+I127+I128 -> -1269825.469 | J130: =J126+J127+J128 -> -1455506.802
B132: Cumulative net cash flow | E132: =E130 -> -212140 | F132: =E130+F130 -> -963647.1971 | G132: =E130+F130+G130 -> -1881623.098 | H132: =E130+F130+G130+H130 -> -2972306.007 | I132: =E130+F130+G130+H130+I130 -> -4242131.476 | J132: =E130+F130+G130+H130+I130+J130 -> -5697638.278
F134: =IF(F132<0,"n/m",ABS(E132)/F130) -> n/m | G134: =IF(G132<0,"n/m",ABS(F132)/G130) -> n/m | H134: =IF(H132<0,"n/m",ABS(G132)/H130) -> n/m | I134: =IF(I132<0,"n/m",ABS(H132)/I130) -> n/m | J134: =IF(J132<0,"n/m",ABS(I132)/J130) -> n/m
B137: NPV | E137: =NPV(J74,F130:J130)+E130 -> -5034849.159
B138: IRR | E138: =IFERROR(IRR(E130:J130),"Unable to Calculate") -> Unable to Calculate
B139: MIRR | E139: =IFERROR(MIRR(E130:J130,$J$74,$J$74),"Unable to Calculate") -> -1
B140: Payback Period | E140: =IFERROR(COUNTIF(F132:J132,"<0")+INDEX(F134:J134,COUNTIF(F132:J132,"<0")+1),"n/a") -> n/a
B141: Payback Period (Show) | E141: =IF(E140<=5,E140,"Greater Than Projected Time Period") -> Greater Than Projected Time Period
C147: Change in Patient Volume (ED Services)
D148: =E137 -> -5034849.159
C149: -0.5 | D149: -14871197.57
C150: -0.4 | D150: -12903927.89
C151: -0.3 | D151: -10936658.21
C152: -0.2 | D152: -8969388.525
C153: -0.1 | D153: -7002118.842
C154: 0 | D154: -5034849.159
C155: 0.1 | D155: -3067579.476
C156: 0.2 | D156: -1100309.793
C157: 0.3 | D157: 866959.8896
C158: 0.4 | D158: 2834229.572
C159: 0.5 | D159: 4801499.255
C161: Change in Patient Volume (Outpatient Services)
D162: =E137 -> -5034849.159
C163: -0.5 | D163: -13751613.2
C164: -0.4 | D164: -12008260.39
C165: -0.3 | D165: -10264907.58
C166: -0.2 | D166: -8521554.776
C167: -0.1 | D167: -6778201.967
C168: 0 | D168: -5034849.159
C169: 0.1 | D169: -3291496.35
C170: 0.2 | D170: -1548143.542
C171: 0.3 | D171: 195209.2662
C172: 0.4 | D172: 1938562.075
C173: 0.5 | D173: 3681914.883
C176: Changes in Medicare Growth Rate
D177: =E137 -> -5034849.159
C178: -1 | D178: -5285836.692
C179: -0.75 | D179: -5224101.055
C180: -0.5 | D180: -5161694.906
C181: -0.25 | D181: -5098612.772
C182: 0 | D182: -5034849.159
C183: 0.25 | D183: -4970398.547
C184: 0.5 | D184: -4905255.392
C185: 0.75 | D185: -4839414.128
C186: 1 | D186: -4772869.165

Sheet Scenario Model (hidden)
C7: Estimated Hospital Payer Mix | D7: Estimated %
C8: Medicare | D8: =GETPIVOTDATA("Value",'Scenario Data'!$F$98,"Variable","Medicare") -> 0.338
C9: Medicaid | D9: =GETPIVOTDATA("Value",'Scenario Data'!$F$98,"Variable","Medicaid") -> 0.207
C10: Self Pay | D10: =GETPIVOTDATA("Value",'Scenario Data'!$F$98,"Variable","Self Pay") -> 0.185
C11: Commercial | D11: =GETPIVOTDATA("Value",'Scenario Data'!$F$98,"Variable","Commercial") -> 0.247
C12: Other (TriCare, etc.) | D12: =GETPIVOTDATA("Value",'Scenario Data'!$F$98,"Variable","Other") -> 0.023
C13: Total | D13: =SUM(D8,D9,D10,D11,D12) -> 1
B16: Please enter your estimated reimbursement from each payer into the table below.
C19: Payer Reimbursement Rates | D19: Estimated %
C20: Medicare | D20: =GETPIVOTDATA("Value",'Scenario Data'!$F$65,"Variable","Medicare Reimbursement") -> 0.99
C21: Medicaid | D21: =GETPIVOTDATA("Value",'Scenario Data'!$F$65,"Variable","Medicaid Reimbusement") -> 0.9
C22: Self Pay | D22: ='8. Expected Revenue'!D26 -> 0.031
C23: Commercial | D23: ='8. Expected Revenue'!D27 -> 0.584
C24: Other (TriCare, etc.) | D24: ='8. Expected Revenue'!D28 -> 0.245
C25: % Uncollected | D25: ='8. Expected Revenue'!D29 -> 0
C29: Estimated ED Revenue
C31: Projected Annual ED Demand | D31: =(EDMonthlyVolume*12) -> 10607
C33: Average Charge per ED Service | D33: =AverageChargeED*Cost_to_Charge -> 1845
C36: Annual Revenue by Payer | D36: Column1
C37: Medicare | D37: =IFERROR(D8*$D$31*$D$33*D20,0) -> 6548484.957
C38: Medicaid | D38: =IFERROR(D9*$D$31*$D$33*D21,0) -> 3645875.164
C39: Self Pay | D39: =IFERROR(D10*$D$31*$D$33*D22,0) -> 112233.4625
C40: Commercial | D40: =IFERROR(D11*$D$31*$D$33*D23,0) -> 2822921.099
C41: Other | D41: =IFERROR(D12*$D$31*$D$33*D24,0) -> 110276.471
C42: Total | D42: =SUM(D37:D41) -> 13239791.15
C44: Total ED Services Revenue | D44: =D42*(1-$D$25) -> 13239791.15
C49: Estimated Outpatient Revenue
C51: Projected Annual Outpatient Demand | D51: =OPMonthlyVolume*12 -> 13258.75
C53: Average Charge per Outpatient Service | D53: ='8. Expected Revenue'!D63 -> 1308
C56: Annual Revenue by Payer | D56: Column1
C57: Medicare | D57: =IFERROR(D8*$D$51*$D$53*D20,0) -> 5803128.946
C58: Medicaid | D58: =IFERROR(D9*$D$51*$D$53*D21,0) -> 3230897.503
C59: Self Pay | D59: =IFERROR(D10*$D$51*$D$53*D22,0) -> 99458.92208
C60: Commercial | D60: =IFERROR(D11*$D$51*$D$53*D23,0) -> 2501613.006
C61: Other | D61: =IFERROR(D12*$D$51*$D$53*D24,0) -> 97724.67758
C62: Total | D62: =SUM(D57:D61) -> 11732823.06
C64: Total Outpatient Services Revenue | D64: =D62*(1-D25) -> 11732823.06
B70: Cash Flow Assumptions
B72: Construction/Renovation costs | E72: ='6. Capital Costs'!C13 -> 0 | G72: Demand growth rate | J72: =GETPIVOTDATA("Value",'Scenario Data'!$F$74,"Variable","Demand Growth Rate") -> 0.08
B73: Other Initial Investment costs | E73: ='6. Capital Costs'!C14 -> 212140 | G73: Inflation rate on costs | J73: ='3. Key Assumptions'!D13 -> 0.03
B74: Staffing Costs | E74: =TotalStaffingCost -> 5705111.858 | G74: Organizational tax rate | J74: =GETPIVOTDATA("Value",'Scenario Data'!$F$33,"Variable","Tax Rate") -> 0
B75: Equipment & Supplies costs | E75: =TotalEquipCosts*(1-J76) -> 8485.6 | G75: Cost of capital | J75: =GETPIVOTDATA("Value",'Scenario Data'!$F$17,"Variable","Cost of Capital") -> 0.04
B76: Other capital costs | E76: =OtherCapitalCosts -> 234414.7 | G76: Purchasing Discount | J76: =GETPIVOTDATA("Value",'Scenario Data'!$F$46,"Variable","Purchasing Discount") -> 0.2
B77: Ancillary costs | E77: =TotalAncillaryCosts -> 570126.25 | G77: Medicare reimbursement growth rate | J77: ='3. Key Assumptions'!D62 -> 0.022
B78: Facility Costs | E78: =ClinSuppCosts111416[[#Totals],[Cost]] -> 311596.29 | G78: Overhead rate (per sq. ft.) | J78: ='7. Operating Costs'!G12 -> 3.23
B79: Other Operating costs | E79: =ClinSuppCosts1114[[#Totals],[Cost]]+ClinSuppCosts111417[[#Totals],[Cost]] -> 1994116 | G79: Facility Square Footage | J79: =Footage -> 19999.92
E86: FED Operating Year
E87: Initial Investment | F87: Year 1 | G87: Year 2 | H87: Year 3 | I87: Year 4 | J87: Year 5
B88: Construction/Renovation costs | E88: =-'6. Capital Costs'!C13 -> 0
B89: Other Initial Investment costs | E89: =-'6. Capital Costs'!C14 -> -212140
B90: Net patient revenue
B91: ED Services
B92: Medicare | F92: =D8*D20*$D$31*$D$33 -> 6548484.957 | G92: =F92*(1+$J$72)*(1+$J$77) -> 7227955.756 | H92: =G92*(1+$J$72)*(1+$J$77) -> 7977928.446 | I92: =H92*(1+$J$72)*(1+$J$77) -> 8805718.301 | J92: =I92*(1+$J$72)*(1+$J$77) -> 9719399.632
B93: Medicaid | F93: =D9*D21*$D$31*$D$33 -> 3645875.164 | G93: =F93*(1+$J$72) -> 3937545.178 | H93: =G93*(1+$J$72) -> 4252548.792 | I93: =H93*(1+$J$72) -> 4592752.695 | J93: =I93*(1+$J$72) -> 4960172.911
B94: Self Pay | F94: =D10*D22*$D$31*$D$33 -> 112233.4625 | G94: =F94*(1+$J$72) -> 121212.1395 | H94: 130909.1107 | I94: 141381.8395 | J94: 152692.3867
B95: Commercial | F95: =D11*D23*$D$31*$D$33 -> 2822921.099 | G95: 3048754.787 | H95: 3292655.17 | I95: 3556067.583 | J95: 3840552.99
B96: Other | F96: =D12*D24*$D$31*$D$33 -> 110276.471 | G96: 119098.5887 | H96: 128626.4758 | I96: 138916.5939 | J96: 150029.9214
B97: Total ED Services Revenue | F97: =SUM(F92:F96) -> 13239791.15 | G97: =SUM(G92:G96) -> 14454566.45 | H97: =SUM(H92:H96) -> 15782667.99 | I97: =SUM(I92:I96) -> 17234837.01 | J97: =SUM(J92:J96) -> 18822847.84
B99: Outpatient Services
B100: Medicare | F100: =D8*D20*$D$51*$D$53 -> 5803128.946 | G100: =F100*(1+$J$72)*(1+$J$77) -> 6405261.605 | H100: =G100*(1+$J$72)*(1+$J$77) -> 7069871.549 | I100: =H100*(1+$J$72)*(1+$J$77) -> 7803441.421 | J100: =I100*(1+$J$72)*(1+$J$77) -> 8613126.503
B101: Medicaid | F101: =D9*D21*$D$51*$D$53 -> 3230897.504 | G101: =F101*(1+$J$72) -> 3489369.304 | H101: =G101*(1+$J$72) -> 3768518.848 | I101: =H101*(1+$J$72) -> 4070000.356 | J101: =I101*(1+$J$72) -> 4395600.384
B102: Self Pay | F102: =D10*D22*$D$51*$D$53 -> 99458.92207 | G102: =F102*(1+$J$72) -> 107415.6358 | H102: 116008.8867 | I102: 125289.5976 | J102: 135312.7655
B103: Commercial | F103: =D11*D23*$D$51*$D$53 -> 2501613.006 | G103: 2701742.047 | H103: 2917881.411 | I103: 3151311.923 | J103: 3403416.877
B104: Other | F104: =D12*D24*$D$51*$D$53 -> 97724.67757 | G104: 105542.6518 | H104: 113986.0639 | I104: 123104.949 | J104: 132953.345
B105: Total Outpatient Services Revenue | F105: =SUM(F100:F104) -> 11732823.06 | G105: =SUM(G100:G104) -> 12809331.24 | H105: =SUM(H100:H104) -> 13986266.76 | I105: =SUM(I100:I104) -> 15273148.25 | J105: =SUM(J100:J104) -> 16680409.88
B107: Total Revenues | F107: =SUM(F97,F105) -> 24972614.21 | G107: =SUM(G97,G105) -> 27263897.69 | H107: =SUM(H97,H105) -> 29768934.75 | I107: =SUM(I97,I105) -> 32507985.26 | J107: =SUM(J97,J105) -> 35503257.72
B109: Less: Capital Costs
B110: Equipment & Supplies costs | F110: =E75 -> 8485.6 | G110: =F110*(1+$J$73) -> 8740.168 | H110: =G110*(1+$J$73) -> 9002.37304 | I110: 9272.444231 | J110: 9550.617558
B111: Other capital costs | F111: =E76 -> 234414.7 | G111: =F111*(1+$J$73) -> 241447.141 | H111: 248690.5552 | I111: 256151.2719 | J111: 263835.81
B113: Operating Costs
B114: Staffing | F114: =E74 -> 5705111.858 | G114: =F114*(1+$J$73) -> 5876265.214 | H114: =G114*(1+$J$73) -> 6052553.171 | I114: =H114*(1+$J$73) -> 6234129.766 | J114: =I114*(1+$J$73) -> 6421153.659
B115: Ancillary costs | F115: =E77 -> 570126.25 | G115: =F115*(1+$J$73) -> 587230.0375 | H115: 604846.9386 | I115: 622992.3468 | J115: 641682.1172
B116: Facility Costs | F116: =E78 -> 311596.29 | G116: 320944.1787 | H116: 330572.5041 | I116: 340489.6792 | J116: 350704.3696
B117: Other Operating costs | F117: =E79 -> 1994116 | G117: 2053939.48 | H117: 2115557.664 | I117: 2179024.394 | J117: 2244395.126
B118: Total Operating Costs | F118: =SUM(F114:F117) -> 8580950.398 | G118: =SUM(G114:G117) -> 8838378.91 | H118: =SUM(H114:H117) -> 9103530.278 | I118: =SUM(I114:I117) -> 9376636.186 | J118: =SUM(J114:J117) -> 9657935.272
B120: Incremental overhead | F120: =J78*J79 -> 64599.7416 | G120: 66537.73385 | H120: 68533.86586 | I120: 70589.88184 | J120: 72707.57829
B121: Depreciation | F121: =IF($J$74>0,EquipCosts106[[#Totals],[Depreciation]],0) -> 0 | G121: =IF($J$74>0,EquipCosts106[[#Totals],[Depreciation]],0) -> 0 | H121: =IF($J$74>0,EquipCosts106[[#Totals],[Depreciation]],0) -> 0 | I121: =IF($J$74>0,EquipCosts106[[#Totals],[Depreciation]],0) -> 0 | J121: =IF($J$74>0,EquipCosts106[[#Totals],[Depreciation]],0) -> 0
B122: Total Costs | F122: =SUM(F110:F111,F114:F117,F120:F121) -> 8888450.44 | G122: =SUM(G110:G111,G114:G117,G120:G121) -> 9155103.953 | H122: =SUM(H110:H111,H114:H117,H120:H121) -> 9429757.072 | I122: =SUM(I110:I111,I114:I117,I120:I121) -> 9712649.784 | J122: =SUM(J110:J111,J114:J117,J120:J121) -> 10004029.28
B124: Income before taxes | F124: =F107-F122 -> 16084163.77 | G124: =G107-G122 -> 18108793.74 | H124: =H107-H122 -> 20339177.68 | I124: =I107-I122 -> 22795335.48 | J124: =J107-J122 -> 25499228.44
B125: Taxes | F125: =$J$74*F124 -> 0 | G125: =$J$74*G124 -> 0 | H125: =$J$74*H124 -> 0 | I125: =$J$74*I124 -> 0 | J125: =$J$74*J124 -> 0
B126: Projected net income | F126: =F124-F125 -> 16084163.77 | G126: =G124-G125 -> 18108793.74 | H126: =H124-H125 -> 20339177.68 | I126: =I124-I125 -> 22795335.48 | J126: =J124-J125 -> 25499228.44
B127: Plus: Depreciation | F127: =F121 -> 0 | G127: =G121 -> 0 | H127: =H121 -> 0 | I127: =I121 -> 0 | J127: =J121 -> 0
B128: Plus: Net building/equipment salvage value | J128: ='9. Pro Forma'!J68 -> 100
B130: Net cash flow | E130: =SUM(E88:E89) -> -212140 | F130: =F126+F127+F128 -> 16084163.77 | G130: =G126+G127+G128 -> 18108793.74 | H130: =H126+H127+H128 -> 20339177.68 | I130: =I126+I127+I128 -> 22795335.48 | J130: =J126+J127+J128 -> 25499328.44
B132: Cumulative net cash flow | E132: =E130 -> -212140 | F132: =E130+F130 -> 15872023.77 | G132: =E130+F130+G130 -> 33980817.51 | H132: =E130+F130+G130+H130 -> 54319995.19 | I132: =E130+F130+G130+H130+I130 -> 77115330.67 | J132: =E130+F130+G130+H130+I130+J130 -> 102614659.1
F134: =IF(F132<0,"n/m",ABS(E132)/F130) -> 0.0131893708 | G134: =IF(G132<0,"n/m",ABS(F132)/G130) -> 0.8764815591 | H134: =IF(H132<0,"n/m",ABS(G132)/H130) -> 1.67070754 | I134: =IF(I132<0,"n/m",ABS(H132)/I130) -> 2.382943442 | J134: =IF(J132<0,"n/m",ABS(I132)/J130) -> 3.024210259
B137: NPV | E137: =NPV(J75,F130:J130)+E130 -> 90521592.3
B138: IRR | E138: =IFERROR(IRR(E130:J130),"Unable to Calculate") -> 75.94446511
B139: MIRR | E139: =IFERROR(MIRR(E130:J130,$J$75,$J$75),"Unable to Calculate") -> 2.493514753
B140: Payback Period | E140: =IFERROR(COUNTIF(F132:J132,"<0")+INDEX(F134:J134,COUNTIF(F132:J132,"<0")+1),"n/a") -> 0.0131893708
B141: Payback Period (Show) | E141: =IF(E140<=5,E140,"Greater Than Projected Time Period") -> 0.0131893708

Sheet Avg Cost Curve (hidden)
B1: 12 Bed | C1: 12 Bed | D1: 12 Bed | E1: 12 Bed | F1: 12 Bed
A2: Scenario | B2: ED Vis (Ann) | C2: # Tot Visits | D2: Tot Exp | E2: Avg Cost/Visit | F2: MC
A3: Min | B3: 8972 | C3: 20187 | D3: 8394467 | E3: =D3/C3 -> 415.83529
C4: =C5-3000 -> 20866 | D4: =D5-(3000*$F$6) -> 8476792.964 | E4: =D4/C4 -> 406.2490637 | F4: =(D4-D3)/(C4-C3) -> 121.2458964
A5: Model | B5: 10607 | C5: 23866 | D5: 8840822 | E5: 370.4358502 | F5: =(D5-D3)/(C5-C3) -> 121.3250883
A6: Mid | B6: 12000 | C6: 27000 | D6: 9221111 | E6: 341.5226296 | F6: =(D6-D5)/(C6-C5) -> 121.3430121
C7: =C6+3000 -> 30000 | D7: =D6+(3000*$F$6) -> 9585140.036 | E7: 319.5046679
C8: 33000 | D8: 9949169.073 | E8: 301.4899719
C9: 36000 | D9: 10313198.11 | E9: 286.4777253
C10: 39000 | D10: 10677227.15 | E10: 273.775055
C11: 42000 | D11: 11041256.18 | E11: 262.8870519
C12: 45000 | D12: 11405285.22 | E12: 253.4507826
A13: Max | B13: =1800*12 -> 21600 | C13: 48600 | D13: 11841911 | E13: 243.6607202
C15: sheet 2. annual ed plus annual OP | D15: tab 9. F61
C16: also on tab 8 annualized
C17: ='8. Expected Revenue'!D41+'8. Expected Revenue'!D61 -> 23865.75 | D17: ='9. Pro Forma'!F61 -> 8840821.898
A19: Scenario | C19: # Tot Visits | D19: Tot Exp | E19: Avg Cost/Visit
A20: Min | C20: 0 | D20: 5945111 | E20: =D20/C20 -> 
B27: 6 Bed | C27: 6 Bed | D27: 6 Bed | E27: 6 Bed | F27: 6 Bed | H27: 12 Bed | I27: 12 Bed | J27: 12 Bed | K27: 12 Bed | L27: 12 Bed | O27: 18 Bed | P27: 18 Bed | Q27: 18 Bed | R27: 18 Bed | S27: 18 Bed
A28: Scenario | B28: ED Vis (Ann) | C28: # Tot Visits | D28: Tot Exp | E28: Avg Cost/Visit | F28: MC | G28: Scenario | H28: ED Vis (Ann) | I28: # Tot Visits | J28: Tot Exp | K28: Avg Cost/Visit | L28: MC | N28: Scenario | O28: ED Vis (Ann) | P28: # Tot Visits | Q28: Tot Exp | R28: Avg Cost/Visit | S28: MC
A29: Min | B29: 4188 | C29: 7329 | D29: 5318482 | E29: 725.6763542 | G29: Min | H29: 8972 | I29: 20187 | J29: 8394467 | K29: =J29/I29 -> 415.83529 | N29: Min | O29: 10800 | P29: 25164 | Q29: 11222123 | R29: 445.9594262
C30: 8347 | D30: 5463843.882 | E30: 654.5877419 | F30: 142.7916327 | I30: =I31-3000 -> 21334 | J30: =J31-(3000*$F$6) -> 8533576.964 | K30: 399.9989202 | L30: =(J30-J29)/(I30-I29) -> 121.2815725 | P30: 30594 | Q30: 11866925.17 | R30: 387.8840677 | S30: 118.7480973
A31: Model | B31: 5341 | C31: 9347 | D31: 5606732 | E31: 599.8429443 | F31: 142.839445 | G31: Model | H31: 10815 | I31: 24334 | J31: 8897606 | K31: 365.6450234 | L31: =(J31-J29)/(I31-I29) -> 121.3260188 | N31: Model | O31: 15491 | P31: 36094 | Q31: 12520029 | R31: 346.8728598 | S31: 118.747118
A32: Mid | B32: 6000 | C32: 10500 | D32: 5771482 | E32: 549.6649524 | F32: 142.888118 | G32: Mid | H32: 12000 | I32: 27000 | J32: 9221111 | K32: 341.5226296 | L32: =(J32-J31)/(I32-I31) -> 121.3447112 | N32: Mid | O32: 18000 | P32: 41940 | Q32: 13214219 | R32: 315.0743681 | S32: 118.7461512
C33: 11500 | D33: 5914370.118 | E33: 514.2930537 | I33: =I32+3000 -> 30000 | J33: =J32+(3000*$F$6) -> 9585140.036 | K33: 319.5046679 | P33: 47440 | Q33: 13867322.83 | R33: 292.3128759
C34: 12500 | D34: 6057258.236 | E34: 484.5806589 | I34: 33000 | J34: 9949169.073 | K34: 301.4899719 | P34: 52940 | Q34: 14520426.66 | R34: 274.280821
C35: 13500 | D35: 6200146.354 | E35: 459.2701003 | I35: 36000 | J35: 10313198.11 | K35: 286.4777253 | P35: 58440 | Q35: 15173530.5 | R35: 259.6428901
C36: 14500 | D36: 6343034.472 | E36: 437.4506532 | I36: 39000 | J36: 10677227.15 | K36: 273.775055 | P36: 63940 | Q36: 15826634.33 | R36: 247.5232144
C37: 15500 | D37: 6485922.59 | E37: 418.4466187 | I37: 42000 | J37: 11041256.18 | K37: 262.8870519 | P37: 69440 | Q37: 16479738.16 | R37: 237.3234182
C38: 16500 | D38: 6628810.708 | E38: 401.7461035 | I38: 45000 | J38: 11405285.22 | K38: 253.4507826 | P38: 74940 | Q38: 17132841.99 | R38: 228.6207898
C39: 17500 | D39: 6771698.826 | E39: 386.9542186 | G39: Max | H39: =1800*12 -> 21600 | I39: 48600 | J39: 11841911 | K39: 243.6607202 | N39: Max | O39: 32400 | P39: 75492 | Q39: 17198411 | R39: 227.8176628
A40: Max | B40: 10800 | C40: 18900 | D40: 6971482 | E40: 368.8614815
C43: # Tot Visits | D43: 6 Bed | E43: 12 Bed | F43: 18 Bed
C44: 7329 | D44: 725.6763542
C45: 8347 | D45: 654.5877419
C46: 9347 | D46: 599.8429443
C47: 10500 | D47: 549.6649524
C48: 11500 | D48: 514.2930537
C49: 12500 | D49: 484.5806589
C50: 13500 | D50: 459.2701003
C51: 14500 | D51: 437.4506532
C52: 15500 | D52: 418.4466187
C53: 16500 | D53: 401.7461035
C54: 17500 | D54: 386.9542186
C55: 18900 | D55: 368.8614815
C56: 20187 | E56: 415.83529
C57: =C58-3000 -> 21334 | E57: 399.9986813
C58: 24334 | E58: 365.6450234
C59: 27000 | E59: 341.5226296
C60: =C59+3000 -> 30000 | E60: 319.5048378
C61: 33000 | E61: 301.4902808
C62: 36000 | E62: 286.47815
C63: 39000 | E63: 273.7755778
C64: 42000 | E64: 262.8876588
C65: 45000 | E65: 253.4514622
C66: 48600 | E66: 243.6607202
C67: 25164 | F67: 445.9594262
C68: 30594 | F68: 387.8840677
C69: 36094 | F69: 346.8728598
C70: 41940 | F70: 315.0743681
C71: 47440 | F71: 292.3128759
C72: 52940 | F72: 274.280821
C73: 58440 | F73: 259.6428901
C74: 63940 | F74: 247.5232144
C75: 69440 | F75: 237.3234182
C76: 74940 | F76: 228.6207898
C77: 75492 | F77: 227.8176628
C82: # Tot Visits | D82: 6 Bed | E82: 12 Bed | F82: 18 Bed
C83: 7329 | D83: 725.6763542
C84: 8347 | D84: 654.5877419
C85: 9347 | D85: 599.8429443
C86: 10500 | D86: 549.6649524
C87: 11500 | D87: 514.2930537
C88: 12500 | D88: 484.5806589
C89: 13500 | D89: 459.2701003
C95: 20187 | E95: 415.83529
C96: =C97-3000 -> 21334 | E96: 399.9986813
C97: 24334 | E97: 365.6450234
C98: 27000 | E98: 341.5226296
C99: =C98+3000 -> 30000 | E99: 319.5048378
C107: 30594 | F107: 387.8840677
C108: 36094 | F108: 346.8728598
C109: 41940 | F109: 315.0743681
C119: # Tot Visits | D119: Hospital Size
B120: 9347 | C120: Low | D120: 599.8429443
B121: 23866 | C121: Medium | D121: 370
B122: 36094 | C122: High | D122: 346.8728598

Sheet Expense Summary (hidden)
B1: Summary
C2: Low | D2: Medium | E2: High
B3: # of Beds | C3: 6 | D3: =NumberBeds -> 12 | E3: 18
B4: Square Footage | C4: 14000 | D4: =Footage -> 19999.92 | E4: 27500
B5: # of ED Visits (annually) | C5: 5341 | D5: ='8. Expected Revenue'!D41 -> 10607 | E5: 15491
B6: # of OP Visits (annually) | C6: 4006 | D6: ='8. Expected Revenue'!D61 -> 13258.75 | E6: 20603
B7: # of Total Visits (annually) | C7: =C5+C6 -> 9347 | D7: =D5+D6 -> 23865.75 | E7: =E5+E6 -> 36094
G12: Costs
H13: Year 1
H14: Low | I14: Medium | J14: High
G15: Operating Costs
G16: Staffing Costs | K16: =H16/H53 -> 0 | L16: =I16/I53 -> 0 | M16: =J16/J53 -> 0
G17: Administration | H17: 154691 | I17: 235298 | J17: 235298
G18: Clinical Providers | H18: 1610784 | I18: 2660501 | J18: 3733596
G19: Clinical Support | H19: 1417390 | I19: 1808817 | J19: 2540614
G20: Non-clinical Support | H20: 840011 | I20: 1000496 | J20: 1394467
G21: Total Staffing Costs | H21: =SUM(H17:H20) -> 4022876 | I21: =SUM(I17:I20) -> 5705112 | J21: =SUM(J17:J20) -> 7903975
G22: Non-labor Operating Costs | H22: 1176355 | I22: =+LabCosts18[[#Totals],[Cost]]+ClinSuppCosts1114[[#Totals],[Cost]] -> 2564242.25 | J22: 3798238
G23: Facility Costs | H23: 196040.01 | I23: =ClinSuppCosts111416[[#Totals],[Cost]] -> 311596.29 | J23: 438286.89
G24: Total Operating Costs | H24: =SUM(H21:H23) -> 5395271.01 | I24: =SUM(I21:I23) -> 8580950.54 | J24: =SUM(J21:J23) -> 12140499.89
G26: ='9. Pro Forma'!B48 -> Capital Cost
G27: Initial Investment Cost (Amortized Portion) | H27: 7477.4 | I27: ='9. Pro Forma'!F49 -> 14849.8 | J27: 21687.4
G28: Net patient revenue
G29: ED Services
G30: Medicare | H30: 359255.5205 | I30: ='8. Expected Revenue'!D47 -> 674046.5823 | J30: 1041982.263
G31: Medicaid | H31: 515107.6924 | I31: ='8. Expected Revenue'!D48 -> 1061707.029 | J31: 1494014.841
G32: Self-Pay/Uninsured | H32: 66070.0714 | I32: ='8. Expected Revenue'!D49 -> 138320.1592 | J32: 191629.1848
G33: Commercial | H33: 1152924.125 | I33: ='8. Expected Revenue'!D50 -> 2297194.902 | J33: 3343933.276
G34: Other | H34: 66338.10414 | I34: ='8. Expected Revenue'!D51 -> 143838.8752 | J34: 192406.5851
G35: Total ED Services Revenue | H35: 2159695.514 | I35: =SUM(I30:I34) -> 4315107.548 | J35: 6263966.15
G37: Outpatient Services
G38: Medicare | H38: 191018.789 | I38: ='8. Expected Revenue'!D67 -> 597325.8331 | J38: 982479.1461
G39: Medicaid | H39: 273886.5291 | I39: ='8. Expected Revenue'!D68 -> 940862.3261 | J39: 1408698.091
G40: Self-Pay/Uninsured | H40: 35129.9404 | I40: ='8. Expected Revenue'!D69 -> 122576.4013 | J40: 180686.0678
G41: Commercial | H41: 613018.1935 | I41: ='8. Expected Revenue'!D70 -> 2035725.564 | J41: 3152975.655
G42: Other | H42: 35272.45537 | I42: ='8. Expected Revenue'!D71 -> 127466.9707 | J42: 181419.0741
G43: Total Outpatient Services Revenue | H43: 1148325.907 | I43: =SUM(I38:I42) -> 3823957.095 | J43: 5906258.034
G45: Total Revenues | H45: 3308021.421 | I45: =SUM(I35,I43) -> 8139064.643 | J45: 12170224.18
G47: Less:
G48: ='9. Pro Forma'!B50 -> Equipment Cost | H48: 5341 | I48: ='9. Pro Forma'!E15 -> 10607 | J48: 15491
G49: ='9. Pro Forma'!B51 -> Other Capital Cost | H49: 118036.1 | I49: ='9. Pro Forma'!E16 -> 234414.7 | J49: 342351.1
G50: Total Capital Cost | H50: =+H27+H48+H49 -> 130854.5 | I50: =+I27+I48+I49 -> 259871.5 | J50: =+J27+J48+J49 -> 379529.5
G52: Depreciation | H52: 0 | I52: =IF(Depreciation="Not Applicable",0,Depreciation) -> 0 | J52: 0
G53: Total Cost | H53: =H24+H50 -> 5526125.51 | I53: =I24+I50 -> 8840822.04 | J53: =J24+J50 -> 12520029.39
B55: Income before taxes | D55: =I45-I53 -> -701757.3971
B56: Taxes | D56: ='9. Pro Forma'!J14*'9. Pro Forma'!F63 -> 0
B57: Projected net income | D57: =D55-D56 -> -701757.3971
B58: Net Margin | D58: =D57/I45 -> -0.08622088998
B59: Plus: Depreciation | D59: =I52 -> 0
B60: Plus: Net building/equipment salvage value
B62: Net cash flow | D62: =D57+D59+D60 -> -701757.3971
B64: Cumulative net cash flow | D64: =#REF!+D62 -> 

Sheet Assumptions (hidden)
A1: Assumptions
A2: Variable | B2: Low | C2: Medium | D2: High | I2: Why?
A3: Volume Assumptions
A4: OP Volume | B4: 75% of ED Volume | C4: 1.25 | D4: 1.33 | I4: Basis reflects analysis of current hospitals volumes of similar size. As with most variables, this will vary significantly based on the hospital. Of the hospitals reviewed, the trend shows more OP volume in the larger hospitals.
A5: Estimated Square Footage | B5: # Beds X 2,333.33 | C5: X 1,666.67 | D5: X 1,527.8 | I5: Square footage assumes a certain baseline needed to operate. As beds are added, there is a proportionally lower increase of space needed, due to economies of scale.
A6: Staff Assumptions | E6: Staff Cost Assumptions
A7: Staff FTEs | B7: 47.1 | C7: =+LeadershipCosts[[#Totals],[FTEs]]+ProviderCosts[[#Totals],[FTEs]]+AdminCosts[[#Totals],[FTEs]] -> 63.6 | D7: 89.7 | E7: 22.4% Staff Benefits Assumed | I7: Note: Included are only staffing differences. Other staff are included in each model. Additionally, some services are assumed contract labor under operating costs.
A8: Administration
A9: Emergency Services Director | B9: 1 | C9: 1 | D9: 1 | I9: Fixed in all three models
A10: Charge Nurse - ED | B10: 0.2 | C10: 1 | D10: 1 | I10: Fixed in all three models
A11: Clinical Providers
A12: MD | B12: 4.7 | C12: ='5. Staffing Costs'!C18 -> 7 | D12: 9.4 | E12: $280,000 salary plus benefits | I12: Minimum of 1 RN and 1 MD on all shifts for 6 bed. The 12 bed assumes 2 day/1 night and the 18 bed assumes a mix of 1-3 physicians/midlevels at different times.
A13: NP/PA | B13: 0 | C13: ='5. Staffing Costs'!C19+'5. Staffing Costs'!C20 -> 2.4 | D13: 4.7 | E13: $89,000 salary plus benefits | I13: NP/PA used interchangeably throughout for midlevel care, though supervision regulations vary by state. No midlevels in the 6 bed, 1 during the day in the 12 bed, and 1.5 during the day in the 18 bed.
A14: Clinical Support
A15: RN | B15: 4.7 | C15: ='5. Staffing Costs'!C21 -> 7 | D15: 10.5 | E15: $54,900 salary plus benefits
A16: CNA/EMT | B16: 2.4 | C16: ='5. Staffing Costs'!C22 -> 4.7 | D16: 7 | I16: Staffing is proportional to the number of beds actively serviced.
A17: Unit Coordinator | B17: 0 | C17: ='5. Staffing Costs'!C23 -> 2.4 | D17: 3.6 | I17: Unit Coordinator duties are absorbed by other roles in the 6 bed.
A18: Ultrasound Tech | B18: 2.4 | C18: ='5. Staffing Costs'!C25 -> 2.4 | D18: 4.7 | I18: Incorporates a minimum 1 day shift Ultrasound Tech (2.4 FTEs) in the 6 bed and 12 bed and 1.5 in the 18 beds.
A19: CT / X-Ray Tech | B19: 4.7 | C19: 4.7 | D19: 4.7 | I19: Fixed in all three models
A20: Med Lab Tech | B20: 4.7 | C20: 4.7 | D20: 4.7 | I20: Fixed in all three models
A21: Respiratory Therapist | B21: 2.4 | C21: ='5. Staffing Costs'!C29 -> 2.4 | D21: 4.7 | I21: Includes a minimum 1 day shift Respiratory Therapist in the 6 and 12 beds and 1 Respiratory Therapist all shifts in the 18 bed.
A22: Social Worker | B22: 0 | C22: ='5. Staffing Costs'!C31 -> 0.5 | D22: 1
A23: Pharmacist | B23: 0.6 | C23: ='5. Staffing Costs'!C32 -> 0.8 | D23: 1
A24: Nonclinical Support
A25: Patient Registrar | B25: 2.4 | C25: ='5. Staffing Costs'!C39 -> 2.4 | D25: 4.7 | I25: Includes a minimum 1 day shift Respiratory Therapist in the 6 and 12 beds and 1 Respiratory Therapist all shifts in the 18 bed.
A26: Clinical Admin Coordinator | B26: 1 | C26: ='5. Staffing Costs'!C40 -> 1 | D26: 1.5 | I26: Assumes a minimum 1 FTE Clinical Admin Coordinator in the 6 and 12 bed and 1.5 FTEs in the 18 bed.
A27: Patient Account Rep | B27: 2.4 | C27: ='5. Staffing Costs'!C41 -> 2.4 | D27: 3.6 | I27: Incorporates a minimum 1 day shift Ultrasound Tech (2.4 FTEs) in the 6 bed and 12 bed and 1.5 in the 18 beds.
A28: HR/Credentialing/Recruiting | B28: 2 | C28: ='5. Staffing Costs'!C42 -> 3 | D28: 4
A29: Business/Payroll | B29: 1 | C29: ='5. Staffing Costs'!C43 -> 1 | D29: 1.5 | I29: Assumes a minimum 1 FTE Clinical Admin Coordinator in the 6 and 12 bed and 1.5 FTEs in the 18 bed.
A30: Billing/Medical Records | B30: 2.4 | C30: ='5. Staffing Costs'!C44 -> 4.7 | D30: 7.1
A31: Security Officer | B31: 4.7 | C31: 4.7 | D31: 4.7 | I31: Fixed in all three models
A32: Property Superintendent | B32: 1 | C32: 1 | D32: 1 | I32: Fixed in all three models
A33: Facilities Staff | B33: 2.4 | C33: 2.4 | D33: 3.6 | I33: Incorporates a minimum 1 day shift Facilities Staff (2.4 FTEs) in the 6 bed and 12 bed and 1.5 in the 18 beds.
B37: =B7-SUM(B9:B33) -> 0 | C37: =C7-SUM(C9:C33) -> 0 | D37: =D7-SUM(D9:D33) -> 0

Sheet 3 Model Graph (hidden)
A2: Three Models | N2: Three Models of Rural Free-Standing Emergency Departments
A3: 6 Beds | B3: 12 Beds | C3: 18 Beds
A4: 14,000 Sq Ft | B4: 20,000 Sq Ft | C4: 27,500 Sq Ft | K4: Three Models of Rural Free-Standing Emergency Departments
A5: 5,341 ED Visits | B5: 10,815 ED Visits | C5: 15,491 ED Visits
A6: 4,006 OP Visits | B6: 13,519 OP Visits | C6: 20,603 OP Visits
A7: 47.9 FTEs | B7: 63.6 FTEs | C7: 89.7 FTEs
A8: $5.6m Yrly Exp | B8: $8.9m Yrly Exp | C8: $12.5m Yrly Exp
E13: 5,341 ED Visits
E14: 4,006 OP Visits | F14: 10,815 ED Visits
E15: 47.9 FTEs | F15: 13,519 OP Visits | G15: 15,491 ED Visits
E16: $5.6m Yrly Exp | F16: 63.6 FTEs | G16: 20,603 OP Visits
F17: $8.9m Yrly Exp | G17: 89.7 FTEs
G18: $12.5m Yrly Exp
A22: FED (Freestanding Emergency Department) | G22: 27,500 Sq Ft
A23: HOPD (Hospital Outpatient Department) - Type of FED affiliated with a hospital and reimbursed facility fees by CMS | F23: 20,000 Sq Ft | G23: 18 Beds
A24: IFED (Independent Freestanding Emergency Department) - Type of FED unaffiliated with a hospital and not reimbursed facility fees by CMS | E24: 14,000 Sq Ft | F24: 12 Beds
A25: RFED (Rural Freestanding Emergency Department) - May take the form of a HOPD or IFED | E25: 6 Beds

Sheet FED FAST Inputs
B13: Hospital Information
B15: Hospital Name
B17: Hospital State
B19: Affiliation with Hospital System?
B20: If yes, what % discount do you receive on equipment and supplies?
B22: Organizational Cost of Capital
B24: Organizational Tax Rate
B26: Number of ED Patient Beds
B28: Average Monthly ED Visits
B30: Average Monthly Outpatient Visits
B32: Number of Hospitals/EDs within 35 Mile Radius
B34: Number of Outpatient Lab/Imaging Facilities within 35 Mile Radius
B36: Estimated ED Square Footage
B38: Key Assumptions
B40: Inflation rate on costs:
B42: Volume Growth Rate
B44: Average charge for ED visit
B46: Average charge for Outpatient visit (per claim)
B48: Cost-to-Charge Ratio
B50: Medicare reimbursement will change annually by:
B52: Avg. Useful life of clinical equipment and office furniture:
B54: Avg. Useful life of computers and technology equipment:
B57: Clinical Staffing Coverage
B59: Nursing Coverage
B61: How many beds will each RN be responsible for?
B63: How many beds will each CNA be responsible for?
B65: Hours Worked / Week (1 FTE)
B67: Physician/Mid-Level Coverage
B69: How many beds will each MD be responsible for?
B71: How many beds will each PA be responsible for?
B73: How many beds will each NP be responsible for?
B75: Hours Worked/Week (1 FTE)
B78: Staffing Costs
B80: Leadership | C80: FTEs | D80: Salary | E80: Bonus | F80: Benefits
B81: Emergency Services Director
B82: Head Nurse - ED
B83: Other
B84: Other
B85: Other
B86: Clinical Support | C86: FTEs | D86: Salary | E86: Bonus | F86: Benefits
B87: Physician
B88: Physician Assistant
B89: Nurse Practitioner
B90: Registered Nurse
B91: C N A / EMT
B92: Medical Scribe
B93: Ultrasound Tech
B94: CT Tech
B95: X-Ray Tech
B96: Med Lab Tech
B97: Respiratory Therapist
B98: Traveling Nurse
B99: Other
B100: Other
B101: Other
B102: Administrative | C102: FTEs | D102: Salary | E102: Bonus | F102: Benefits
B103: Patient Registrar
B104: Clinical Admin. Coordinator
B105: Medical Social Worker
B106: Other
B107: Other
B108: Other
B111: Capital Costs
B113: Initial Investment Costs | C113: Cost
B114: Construction/Renovation
B115: Other Costs
B116: Equipment | C116: Cost | D116: Estimated Salvage Value
B117: Computer/IT
B118: Telehealth Equipment
B119: Clinical Equipment
B120: Laboratory Equipment
B121: Radiology Equipment
B122: Pharmacy Equipment
B123: Administrative Equipment
B124: Other Equipment
B125: Other Capital Costs | C125: Cost
B126: Other Costs
B128: Operating Costs
B130: Laboratory | C130: Cost
B131: Shipping
B132: Supplies
B133: Other
B134: Radiology | C134: Cost
B135: Supplies
B136: Other
B137: Pharmacy | C137: Cost
B138: Drugs
B139: Supplies
B140: Other
B141: Facility Costs | C141: Cost | D141: Or, In lieu of actual Utilities & Maintenance Costs
B142: Utilities & Maintenance | D142: Overhead rate per facility gross square foot:
B143: Environmental Services
B144: Dietary
B145: Equipment Maintenance
B146: Other
B147: Administrative Costs | C147: Cost
B148: Marketing
B149: IT Support
B150: Billing
B151: Security
B152: Medical Records
B153: Books
B154: Traveling/Continuing Education
B155: Other
B156: Other Operating Costs | C156: Cost
B157: Other
B158: Other
B159: Other
B162: Expected Revenue
B164: Estimated Hospital Payer Mix | C164: Estimated %
B165: Medicare
B166: Medicaid
B167: Self Pay
B168: % Self-Pay Uncollected
B169: Commercial
B170: Other (TriCare, etc.)
B172: Payer Reimbursement Rates | C172: Estimated %
B173: Medicare
B174: Medicaid
B175: Self Pay
B176: Commercial
B177: Other (TriCare, etc.)

Sheet Definitions
B12: Acronyms
B13: ACA: The Patient Protection and Affordable Care Act
B14: ACEP: American College of Emergency Physicians
B15: AHA: American Hospital Association
B16: CAH: Critical Access Hospital
B17: CMS: Center for Medicare & Medicaid Services
B18: CNA: Certified Nursing Assistant
B19: CON: Certificate of Need
B20: CR: Computed Radiography
B21: CT: Computed Tomography
B22: DR: Digital Radiography
B23: ED: Emergency Department
B24: EMR: Electronic Medical Record
B25: EMS: Emergency Medical Services
B26: EMT: Emergency Medical Technician
B27: FED: Freestanding Emergency Department
B28: FESC: Frontier Extended-Stay Clinics
B29: FGI: Facilities Guideline Institute
B30: FQHC: Federally Qualified Health Center
B31: FTE: Full Time Equivalent
B32: GPO: Group Purchasing Organization
B33: HOPDs: Hospital Outpatient Departments
B34: HPSA: Health Professional Shortage Area
B35: HRSA: Health Resources & Services Administration
B36: IFEDs: Independent Freestanding Emergency Departments
B37: IP: Inpatient
B38: IRR: Internal Rate of Return
B39: LIS: Laboratory Information System
B40: MIRR: Modified Internal Rate of Return
B41: MRI: Magnetic Resonance Imaging
B42: MSA: Metropolitan Statistical Area
B43: OMB: Office of Management and Budget
B44: ORHP: Office of Rural Health Policy
B45: OSHA: Occupational Safety & Health Administration
B46: NP: Nurse Practitioner
B47: NPV: Net Present Value
B48: NRHA: National Rural Health Association
B49: PA: Physician Assistant
B50: PACS: Picture Archiving and Communication System
B51: POCT: Point of Care Testing
B52: PPE: Plant, Property, Equipment
B53: RN: Registered Nurse
B54: RT: Respiratory Therapy or Respiratory Therapist
B55: RUCA: Rural-Urban Commuting Area
B56: SWOT Analysis: Strengths Weaknesses Opportunities Threats Analysis
B57: US: Ultrasound
B60: Definitions
B139: Back to Top

Sheet References
B6: Hospital Affiliation
B8: CMS Reimbursement for FEDs
B9: Medicare Part B Reimbursement for FEDs
B11: Key Assumptions
B13: Consumer Price Index
B14: Current & Historical Inflation Rates
B15: Benchmarking 2.0 Health Care Facility Management Report
B16: Hospital Mean Utility Cost per Gross Square Foot
B17: Article: ER Visits Still Rising Despite ACA
B18: HCUP Trends in ED Visits: 2006-2011
B19: Patient Charges for Top 10 Diagnoses in the ED
B20: CAH Financial Indicator Reports
B21: OPPS Update for CY2015 (pg. 66776)

Sheet Acknowledgements
A6: This project was supported by the Federal Office of Rural Health Policy (FORHP), Health Resources and Services Administration (HRSA), U.S. Department of Health and Human Services (HHS) under cooperative agreement # U1CRH03714. The information, conclusions and opinions expressed in this findings brief are those of the authors and no endorsement by FORHP, HRSA, HHS, or The University of North Carolina is intended or should be inferred.
A8: We’d also like to acknowledge and thank five students for their work developing the Freestanding Emergency Department Financial Assessment Strategic Tool. Jasmin Hainey, MHA; Keenan Jones, MHA; Manasi Kulkarni, MHA; Katie Ward, MHA; and Jake Zisette, RN, MHA developed the tool as the final product for their Masters of Health Administration Capstone project.
